{"text_format":"1","workbook":"xlsx","n_sheets":11,"sheets":["Приказ","Инструкция","Список","Табель","КВД","Кор. табель","Стипендия","Звонки","История","Тех.лист","Версия"],"not_rendered":{"charts":0,"images":6,"macros":1,"external_links":0,"defined_names":2,"comments":0,"pivot_tables":0},"unopened":[],"bounds":{"document_bytes":16777216,"sheet_cells":100000,"rows_first":2000,"rows_last":500,"rows_between":2000,"halvings":0,"cell_chars":16384,"cell_head_chars":4096},"cells_cut":0,"cells_raw":0,"read":"whole","date_system":"1900"}

{"sheet":"Приказ","index":0,"n_rows":0,"n_cols":0,"rows_kept":0,"cut":false,"hidden":false,"merged":[]}

{"sheet":"Инструкция","index":1,"n_rows":51,"n_cols":50,"rows_kept":51,"cut":false,"hidden":false,"merged":[[46,25,46,49],[45,25,45,49],[37,48,37,49],[36,25,36,26],[36,27,36,49],[41,46,41,47],[41,48,41,49],[43,39,43,40],[43,41,43,42],[41,26,41,27],[41,28,41,29],[41,30,41,31],[41,32,41,33],[41,34,41,35],[37,44,37,45],[37,46,37,47],[43,43,43,44],[43,45,43,46],[43,47,43,48],[41,36,41,37],[41,38,41,39],[41,40,41,41],[41,42,41,43],[41,44,41,45],[43,25,43,26],[43,27,43,28],[43,29,43,30],[43,31,43,32],[43,33,43,34],[43,35,43,36],[43,37,43,38],[32,45,32,46],[32,47,32,48],[37,26,37,27],[37,28,37,29],[37,30,37,31],[37,32,37,33],[37,34,37,35],[37,36,37,37],[37,38,37,39],[37,40,37,41],[37,42,37,43],[30,25,30,49],[33,26,33,49],[34,25,34,26],[34,27,34,49],[35,26,35,27],[35,28,35,29],[35,30,35,31],[35,32,35,33],[35,34,35,35],[35,36,35,37],[35,38,35,39],[35,40,35,41],[35,42,35,43],[35,44,35,45],[35,46,35,47],[35,48,35,49],[49,26,49,49],[50,33,50,43],[50,25,50,32],[50,44,50,48],[44,25,44,49],[47,25,47,49],[48,25,48,49],[42,25,42,49],[38,25,38,26],[38,27,38,49],[39,26,39,27],[39,28,39,29],[39,30,39,31],[39,32,39,33],[39,34,39,35],[39,36,39,37],[39,38,39,39],[39,40,39,41],[39,42,39,43],[39,44,39,45],[39,46,39,47],[39,48,39,49],[40,25,40,26],[40,27,40,49],[28,26,28,49],[29,25,29,26],[31,26,31,49],[32,25,32,26],[29,33,29,34],[29,35,29,36],[29,37,29,38],[29,39,29,40],[29,41,29,42],[29,27,29,28],[29,29,29,30],[29,31,29,32],[29,43,29,44],[29,45,29,46],[29,47,29,48],[32,27,32,28],[32,29,32,30],[32,31,32,32],[32,33,32,34],[32,35,32,36],[32,37,32,38],[32,39,32,40],[32,41,32,42],[32,43,32,44],[24,25,24,49],[25,25,25,49],[23,26,23,49],[26,26,26,49],[27,25,27,26],[20,25,20,49],[21,25,21,49],[22,26,22,49],[27,45,27,46],[27,47,27,48],[27,27,27,28],[27,29,27,30],[27,31,27,32],[27,33,27,34],[27,35,27,36],[27,37,27,38],[27,39,27,40],[27,41,27,42],[27,43,27,44],[15,25,15,49],[16,25,16,49],[17,25,17,49],[18,25,18,49],[19,25,19,49],[11,25,11,49],[14,25,14,49],[10,26,10,49],[13,26,13,49],[12,26,12,35],[12,39,12,45],[12,36,12,38],[12,46,12,48],[5,25,5,49],[6,26,6,49],[7,25,7,49],[8,25,8,49],[9,25,9,49],[0,25,0,49],[1,25,1,49],[2,25,2,49],[3,25,3,49],[4,25,4,49],[37,0,37,24],[29,0,29,24],[50,19,50,23],[50,9,50,18],[50,0,50,8],[6,1,6,24],[10,1,10,24],[18,0,18,24],[7,0,7,24],[8,0,8,24],[9,0,9,24],[11,0,11,24],[34,0,34,24],[35,0,35,24],[31,0,31,2],[20,1,20,24],[19,0,19,24],[17,1,17,24],[16,0,16,2],[16,3,16,24],[24,0,24,24],[15,0,15,24],[22,1,22,24],[36,0,36,24],[41,1,41,11],[27,0,27,2],[32,0,32,2],[33,0,33,2],[23,0,23,1],[28,0,28,1],[23,2,23,24],[28,2,28,24],[0,0,0,24],[1,0,1,24],[4,0,4,24],[3,0,3,24],[5,0,5,24],[2,0,2,24],[30,0,30,24],[25,0,25,2],[26,0,26,2],[21,0,21,24],[13,0,13,2],[12,0,12,13],[12,14,12,24],[13,3,13,24],[14,0,14,2],[14,3,14,24],[44,12,44,24],[45,12,45,24],[46,12,46,24],[44,0,44,11],[45,0,45,11],[47,0,47,11],[48,0,48,11],[46,1,46,11],[42,0,42,11],[43,1,43,11],[49,2,49,24],[49,0,49,1],[48,12,48,24],[47,12,47,24],[40,0,40,3],[39,0,39,3],[38,0,38,3],[38,4,38,24],[39,4,39,6],[40,4,40,6],[39,7,39,9],[40,7,40,9],[39,10,39,12],[40,10,40,12],[39,13,39,15],[40,13,40,15],[39,16,39,18],[39,19,39,21],[40,16,40,18],[40,19,40,21],[39,22,40,24],[41,12,41,24],[42,12,42,24],[43,12,43,24]]}
["Инструкция по работе с табелем учёта посещаемости обучающимися ",null,null,null,null,null,null,null,null,null,null,null,null,null,null,null,null,null,null,null,null,null,null,null,null,"Инструкция по работе с протоколом заседания"]
["практических и теоретических занятий (далее – табель)",null,null,null,null,null,null,null,null,null,null,null,null,null,null,null,null,null,null,null,null,null,null,null,null," стипендиальной комиссии (далее – стипендия)"]
[]
["Табель поддерживает Microsoft Office Excel 2010, но крайне рекомендуется заполнять в",null,null,null,null,null,null,null,null,null,null,null,null,null,null,null,null,null,null,null,null,null,null,null,null,"Стипендия поддерживает Microsoft Office Excel 2010, но крайне рекомендуется заполнять в"]
["программе Microsoft Office Excel 2013 или Microsoft Office Excel 2016!",null,null,null,null,null,null,null,null,null,null,null,null,null,null,null,null,null,null,null,null,null,null,null,null,"программе Microsoft Office Excel 2013 или Microsoft Office Excel 2016!"]
[]
["1.","После открытия файла сверху на жёлтой горизонтальной полоске необходимо ",null,null,null,null,null,null,null,null,null,null,null,null,null,null,null,null,null,null,null,null,null,null,null,"1.","После открытия файла сверху на жёлтой горизонтальной полоске необходимо "]
["нажать на кнопку «Разрешить редактирование», затем «Включить содержимое»;",null,null,null,null,null,null,null,null,null,null,null,null,null,null,null,null,null,null,null,null,null,null,null,null,"нажать на кнопку «Разрешить редактирование», затем «Включить содержимое»;"]
[]
[]
["2.","На листе \"Список\" заполняете все красные ячейки:",null,null,null,null,null,null,null,null,null,null,null,null,null,null,null,null,null,null,null,null,null,null,null,"2.","Фамилия, имя, отчество и поимённый номер обучающихся набирается на листе \"Список\" и"]
["● четыре (три) сверху и две снизу.",null,null,null,null,null,null,null,null,null,null,null,null,null,null,null,null,null,null,null,null,null,null,null,null,"автоматически переносится на лист \"Стипендия\";"]
["ЯЧЕЙКИ",null,null,null,null,null,null,null,null,null,null,null,null,null,null,null,null,null,null,null,null,null,null,null,null,"3.","Красные ячейки заполняются вручную, ",null,null,null,null,null,null,null,null,null,null,null,null,"а жёлтые автоматически. "]
["Красные ",null,null,"заполняются вручную;",null,null,null,null,null,null,null,null,null,null,null,null,null,null,null,null,null,null,null,null,null,"3.1","Заполняем все красные ячейки на листе \"Список\":"]
["Оранжевые ",null,null,"становятся красными, при заполнении",null,null,null,null,null,null,null,null,null,null,null,null,null,null,null,null,null,null,null,null,null,"три сверху для главного корпуса, четыре сверху для СП:"]
["других красных ячеек, затем заполняются вручную;",null,null,null,null,null,null,null,null,null,null,null,null,null,null,null,null,null,null,null,null,null,null,null,null,"   • Корпус;"]
["Жёлтые",null,null,"заполняются автоматически, при заполнении красных ячеек.",null,null,null,null,null,null,null,null,null,null,null,null,null,null,null,null,null,null,null,null,null,"   • Курс;"]
["3.","Вносите список обучающихся и поимённые номера обучающихся (если Вы копируете список",null,null,null,null,null,null,null,null,null,null,null,null,null,null,null,null,null,null,null,null,null,null,null,"   • № группы;"]
["из другого файла Excel, то при вставке используйте «Формулы (Ф)» в",null,null,null,null,null,null,null,null,null,null,null,null,null,null,null,null,null,null,null,null,null,null,null,null,"   • Цифру группы после дроби (для главного корпуса не заполняется);"]
["параметрах вставки);",null,null,null,null,null,null,null,null,null,null,null,null,null,null,null,null,null,null,null,null,null,null,null,null,"и две снизу справа:"]
["4.","Далее переходите на лист \"Табель\" и выбираете месяц",null,null,null,null,null,null,null,null,null,null,null,null,null,null,null,null,null,null,null,null,null,null,null,"   • Кл. руковод. или Мастер п/о;"]
["Внизу заполняем данные по столовой;",null,null,null,null,null,null,null,null,null,null,null,null,null,null,null,null,null,null,null,null,null,null,null,null,"   • Фамилия и инициалы кл. руковод. или мастера п/о."]
["5.","По автоматически выставленным будним дням выставляем:",null,null,null,null,null,null,null,null,null,null,null,null,null,null,null,null,null,null,null,null,null,null,null,"3.2","На листе \"Стипендия\" заполняем красную ячейку - месяц;"]
["5.1.",null,"СНАЧАЛА",null,null,null,null,null,null,null,null,null,null,null,null,null,null,null,null,null,null,null,null,null,null,"4.","Заполняем основные ячейки с суммой стипендии в соответствующие столбцы;"]
[" теорию (Т) и практику (в колледже (ПК) или на предприятии (ПП)) согласно расписанию занятий;",null,null,null,null,null,null,null,null,null,null,null,null,null,null,null,null,null,null,null,null,null,null,null,null,"Клавиша \"Delete\" - очистить ячейку."]
[null,null,null,"т","пк","т","пк","т",null,null,"т","пк","т","пп","т",null,null,"т","пп","т","пп","т",null,null,"т","Назначения:"]
["Копирование",null,null,"т","пк","т","пк","т",null,null,"т","пк","т","пп","т",null,null,"т","пп","т","пп","т",null,null,"т",null,"Академическая стипендия"]
["ЗАПРЕЩЕНО",null,null,"т","пк","т","пк","т",null,null,"т","пк","т","пп","т",null,null,"т","пп","т","пп","т",null,null,"т",null,null,{"$f":"Тех.лист!E58","v":530}]
["5.2.",null,"ПОСЛЕ",null,null,null,null,null,null,null,null,null,null,null,null,null,null,null,null,null,null,null,null,null,null,null,"Социальная стипендия"]
["В ячейках, на заполненных будних днях, меняем значения на справку (С), отсутствующих (Н) или",null,null,null,null,null,null,null,null,null,null,null,null,null,null,null,null,null,null,null,null,null,null,null,null,null,null,{"$f":"Тех.лист!E59","v":795}]
["приказ (ПР) согласно не посещаемости обучающихся по уважительной или неуважительной",null,null,null,null,null,null,null,null,null,null,null,null,null,null,null,null,null,null,null,null,null,null,null,null,"Повышение"]
["причине;",null,null,"т","пк","т","н","т",null,null,"т","пк","н","пп","т",null,null,"т","пп","т","пп","т",null,null,"т",null,"За успехи в учебной деятельности"]
["Копирование",null,null,"н","пк","т","пк","т",null,null,"т","пк","т","пп","т",null,null,"пр","пп","т","пп","н",null,null,"т",null,null,{"$f":"Тех.лист!E57","v":265},null,{"$f":"Тех.лист!E58","v":530}]
["ЗАПРЕЩЕНО",null,null,"т","пк","т","пк","т",null,null,"т","пр","т","пп","с",null,null,"с","с","с","пп","т",null,null,"т",null,"За участие в мероприятиях"]
["От - отчислен(а)",null,null,null,null,null,null,null,null,null,null,null,null,null,null,null,null,null,null,null,null,null,null,null,null,null,null,"Внутри колледжа"]
["Корректирующий табель учёта посещаемости обучающимися ",null,null,null,null,null,null,null,null,null,null,null,null,null,null,null,null,null,null,null,null,null,null,null,null,null,null,null,{"$f":"Тех.лист!E57","v":265},null,{"$f":"Тех.лист!E58","v":530}]
["Корректирующий табель заполняется за предыдущий месяц и автоматически выбирается (месяц) ",null,null,null,null,null,null,null,null,null,null,null,null,null,null,null,null,null,null,null,null,null,null,null,null,null,null,"Городских"]
["исходя из месяца, которого Вы выбираете на листе «Табель» (см. п. 4. инструкции по табелю).",null,null,null,null,null,null,null,null,null,null,null,null,null,null,null,null,null,null,null,null,null,null,null,null,null,null,null,{"$f":"Тех.лист!E57","v":265},null,{"$f":"Тех.лист!E58","v":530},null,{"$f":"Тех.лист!E59","v":795},null,{"$f":"Тех.лист!E60","v":1060}]
["Порядок",null,null,null,"Месяц (*- Январь - текущий год, Декабрь - предыдущий год)",null,null,null,null,null,null,null,null,null,null,null,null,null,null,null,null,null,null,null,null,null,null,"Областных"]
["Табель",null,null,null,"Январь*",null,null,"Февраль",null,null,"Март",null,null,"Июль",null,null,"Сентябрь",null,null,"Октябрь",null,null,"И т. д.",null,null,null,null,null,{"$f":"Тех.лист!E58","v":530},null,{"$f":"Тех.лист!E59","v":795},null,{"$f":"Тех.лист!E60","v":1060},null,{"$f":"Тех.лист!E61","v":1325},null,{"$f":"Тех.лист!E62","v":1590}]
["Кор. Табель",null,null,null,"Декабрь*",null,null,"Январь",null,null,"Февраль",null,null,"Июнь",null,null,"Июль",null,null,"Сентябрь",null,null,null,null,null,null,null,"Всероссийских"]
["1.","Первоначальная настройка описана чуть",null,null,null,null,null,null,null,null,null,null,null,null,null,null,null,null,null,null,null,null,null,null,null,null,null,null,{"$f":"Тех.лист!E58","v":530},null,{"$f":"Тех.лист!E59","v":795},null,{"$f":"Тех.лист!E60","v":1060},null,{"$f":"Тех.лист!E61","v":1325},null,{"$f":"Тех.лист!E62","v":1590}]
["выше до пункта 3 инструкции по табелю.",null,null,null,null,null,null,null,null,null,null,null,null,null,null,null,null,null,null,null,null,null,null,null,null,"Доп. стипендия детям-сиротам"]
["2.","Заполняем столбик с Ф. И. О. обучающегося",null,null,null,null,null,null,null,null,null,null,null,null,null,null,null,null,null,null,null,null,null,null,null,null,null,{"$f":"Тех.лист!E63","v":4000}]
["путём выбора (кнопкой | ▼ | справа от ячейки)"]
["из выпадающего списка."]
["3.","Заполняете корректирующий табель"]
["выставляя значения:"]
["справка (С) или приказ (ПР)"]
["6./4.",null,"Согласиться с ознакомлением инструкции по работе с табелем.",null,null,null,null,null,null,null,null,null,null,null,null,null,null,null,null,null,null,null,null,null,null,"5.","Согласиться с ознакомлением краткой инструкции по работе со стипендией."]
["Клавиша \"Delete\" - очистить ячейку.",null,null,null,null,null,null,null,null,"С  инструкцией по работе с табелем",null,null,null,null,null,null,null,null,null,"не ознакомлен(а)",null,null,null,null,{"$f":"IF(Инструкция!T51=Тех.лист!C91,1,0)","v":0},null,null,null,null,null,null,null,null,"С  инструкцией по работе со стипендией",null,null,null,null,null,null,null,null,null,null,"не ознакомлен(а)",null,null,null,null,{"$f":"IF(Инструкция!AS51=Тех.лист!C91,1,0)","v":0}]

{"sheet":"Список","index":2,"n_rows":43,"n_cols":9,"rows_kept":43,"cut":false,"hidden":false,"merged":[[0,9,42,10],[20,1,20,7],[21,1,21,7],[34,1,34,7],[6,1,6,7],[7,1,7,7],[16,1,16,7],[17,1,17,7],[18,1,18,7],[23,1,23,7],[13,1,13,7],[14,1,14,7],[15,1,15,7],[41,0,41,4],[36,1,36,7],[30,1,30,7],[0,0,0,8],[2,0,2,8],[3,0,3,1],[3,7,3,8],[22,1,22,7],[1,0,1,2],[1,6,1,8],[1,3,1,5],[4,0,4,8],[5,1,5,7],[19,1,19,7],[8,1,8,7],[9,1,9,7],[43,0,43,2],[43,4,43,8],[42,1,42,7],[40,1,40,7],[24,1,24,7],[25,1,25,7],[26,1,26,7],[27,1,27,7],[28,1,28,7],[29,1,29,7],[41,5,41,6],[37,1,37,7],[38,1,38,7],[31,1,31,7],[32,1,32,7],[33,1,33,7],[39,1,39,7],[35,1,35,7],[41,7,41,8],[10,1,10,7],[11,1,11,7],[12,1,12,7]]}
["ГБПОУ МО \"Подольский колледж имени А. В. Никулина\""]
["(",null,null,null,null,null,")"]
["Список обучающихся"]
[null,null,null,"курса, группы №",null,"/"]
[]
["№ п/п","Фамилия Имя Отчество обучающегося",null,null,null,null,null,null,"Поимённый номер"]
[1]
[2]
[3]
[4]
[5]
[6]
[7]
[8]
[9]
[10]
[11]
[12]
[13]
[14]
[15]
[16]
[17]
[18]
[19]
[20]
[21]
[22]
[23]
[24]
[25]
[26]
[27]
[28]
[29]
[30]
[31]
[32]
[33]
[34]
[35]
["Количество обучающихся в группе:",null,null,null,null,{"$f":"Тех.лист!I37-Тех.лист!E12","v":0},null,"человек"]
[{"$f":"Табель!A1","v":1},{"$f":"IF(Табель!A52>Тех.лист!J91,\"Эта версия новее, чем на сайте\",IF(Табель!A52=Тех.лист!J91,\"\",\"Скачать новую версию\"))","v":""},null,null,null,null,null,null,"AlexBor"]

{"sheet":"Табель","index":3,"n_rows":52,"n_cols":39,"rows_kept":52,"cut":false,"hidden":false,"merged":[[51,2,51,5],[51,29,51,32],[51,12,51,16],[51,17,51,19],[51,20,51,24],[51,25,51,28],[51,6,51,11],[50,1,50,11],[50,12,50,24],[50,25,50,38],[49,33,49,38],[43,0,48,0],[2,2,3,30],[5,27,5,28],[5,24,5,26],[48,33,48,37],[6,33,6,38],[43,38,47,38],[5,29,5,38],[2,31,2,38],[3,31,3,38],[4,36,4,38],[4,31,4,35],[1,31,1,38],[1,29,1,30],[51,33,51,38],[2,0,2,1],[1,3,1,4],[6,0,7,0],[5,17,5,19],[3,0,3,1],[1,0,1,1],[0,5,1,28],[0,2,0,4],[4,13,4,18],[4,0,4,12],[5,0,5,16],[0,29,0,38],[4,19,4,30]]}
[{"$f":"IF(A52>=Тех.лист!J91,1,0)","v":1},{"$f":"IF(A52>Тех.лист!J91,\"Эта версия новее, чем на сайте\",IF(A52=Тех.лист!J91,\"\",\"Скачать новую версию\"))","v":""},null,null,null,null,null,null,null,null,null,null,null,null,null,null,null,null,null,null,null,null,null,null,null,null,null,null,null,"Приложение к приказу №233 от 01.09.2016г."]
["Количество обучающихся в группе:",null,{"$f":"Список!F42","v":0},"чел.",null,null,null,null,null,null,null,null,null,null,null,null,null,null,null,null,null,null,null,null,null,null,null,null,null,null,null,"Утверждаю"]
[{"$f":"NOW()","v":"2017-05-04T13:09:52.260"},null,"Табель учёта посещаемости обучающимися практических и теоретических занятий",null,null,null,null,null,null,null,null,null,null,null,null,null,null,null,null,null,null,null,null,null,null,null,null,null,null,null,null,"Директор ГБПОУ МО \"Подольский"]
[null,null,null,null,null,null,null,null,null,null,null,null,null,null,null,null,null,null,null,null,null,null,null,null,null,null,null,null,null,null,null,"колледж имени А. В. Никулина\""]
["(",null,null,null,null,null,null,null,null,null,null,null,null,{"$f":"Список!D2","v":0},null,null,null,null,null,")",null,null,null,null,null,null,null,null,null,null,null,null,null,null,null,null,"С. В. Ступин"]
["ГБПОУ МО \"Подольский колледж имени А. В. Никулина\"",null,null,null,null,null,null,null,null,null,null,null,null,null,null,null,null,"группы №",null,null,{"$f":"Список!E4","v":0},"/",{"$f":"Список!G4","v":0},"за",null,null,null,{"$f":"Тех.лист!C59","v":2017},null,"год"]
["№ п/п","Числа и дни месяца",1,2,3,4,5,6,7,8,9,10,11,12,13,14,15,16,17,18,19,20,21,22,23,24,25,26,27,28,29,30,31,"Итого"]
[null,"Ф. И. О. обучающегося",{"$f":"Тех.лист!E26","v":"Чт"},{"$f":"Тех.лист!E27","v":"Пт"},{"$f":"Тех.лист!E28","v":"Сб"},{"$f":"Тех.лист!E29","v":"Вс"},{"$f":"Тех.лист!E30","v":"Пн"},{"$f":"Тех.лист!E31","v":"Вт"},{"$f":"Тех.лист!E32","v":"Ср"},{"$f":"C8","v":"Чт"},"Пт","Сб","Вс","Пн","Вт","Ср",{"$f":"J8","v":"Чт"},"Пт","Сб","Вс","Пн","Вт","Ср","Чт","Пт","Сб","Вс","Пн","Вт","Ср","Чт","Пт","Сб","Т","ПК","ПП","Н","С","ПР"]
[1,{"$f":"IF(OR(Список!B7=0,Список!I7=0),0,Список!B7)","v":0},null,null,null,null,null,null,null,null,null,null,null,null,null,null,null,null,null,null,null,null,null,null,null,null,null,null,null,null,null,null,null,{"$f":"COUNTIF(C9:AG9,Тех.лист!$E$2)","v":0},{"$f":"COUNTIF(C9:AG9,Тех.лист!$E$3)","v":0},{"$f":"COUNTIF(C9:AG9,Тех.лист!$E$4)","v":0},{"$f":"COUNTIF(C9:AG9,Тех.лист!$E$5)","v":0},{"$f":"COUNTIF(C9:AG9,Тех.лист!$E$6)","v":0},{"$f":"COUNTIF(C9:AG9,Тех.лист!$E$7)","v":0}]
[2,{"$f":"IF(OR(Список!B8=0,Список!I8=0),0,Список!B8)","v":0},null,null,null,null,null,null,null,null,null,null,null,null,null,null,null,null,null,null,null,null,null,null,null,null,null,null,null,null,null,null,null,{"$f":"COUNTIF(C10:AG10,Тех.лист!$E$2)","v":0},{"$f":"COUNTIF(C10:AG10,Тех.лист!$E$3)","v":0},{"$f":"COUNTIF(C10:AG10,Тех.лист!$E$4)","v":0},{"$f":"COUNTIF(C10:AG10,Тех.лист!$E$5)","v":0},{"$f":"COUNTIF(C10:AG10,Тех.лист!$E$6)","v":0},{"$f":"COUNTIF(C10:AG10,Тех.лист!$E$7)","v":0}]
[3,{"$f":"IF(OR(Список!B9=0,Список!I9=0),0,Список!B9)","v":0},null,null,null,null,null,null,null,null,null,null,null,null,null,null,null,null,null,null,null,null,null,null,null,null,null,null,null,null,null,null,null,{"$f":"COUNTIF(C11:AG11,Тех.лист!$E$2)","v":0},{"$f":"COUNTIF(C11:AG11,Тех.лист!$E$3)","v":0},{"$f":"COUNTIF(C11:AG11,Тех.лист!$E$4)","v":0},{"$f":"COUNTIF(C11:AG11,Тех.лист!$E$5)","v":0},{"$f":"COUNTIF(C11:AG11,Тех.лист!$E$6)","v":0},{"$f":"COUNTIF(C11:AG11,Тех.лист!$E$7)","v":0}]
[4,{"$f":"IF(OR(Список!B10=0,Список!I10=0),0,Список!B10)","v":0},null,null,null,null,null,null,null,null,null,null,null,null,null,null,null,null,null,null,null,null,null,null,null,null,null,null,null,null,null,null,null,{"$f":"COUNTIF(C12:AG12,Тех.лист!$E$2)","v":0},{"$f":"COUNTIF(C12:AG12,Тех.лист!$E$3)","v":0},{"$f":"COUNTIF(C12:AG12,Тех.лист!$E$4)","v":0},{"$f":"COUNTIF(C12:AG12,Тех.лист!$E$5)","v":0},{"$f":"COUNTIF(C12:AG12,Тех.лист!$E$6)","v":0},{"$f":"COUNTIF(C12:AG12,Тех.лист!$E$7)","v":0}]
[5,{"$f":"IF(OR(Список!B11=0,Список!I11=0),0,Список!B11)","v":0},null,null,null,null,null,null,null,null,null,null,null,null,null,null,null,null,null,null,null,null,null,null,null,null,null,null,null,null,null,null,null,{"$f":"COUNTIF(C13:AG13,Тех.лист!$E$2)","v":0},{"$f":"COUNTIF(C13:AG13,Тех.лист!$E$3)","v":0},{"$f":"COUNTIF(C13:AG13,Тех.лист!$E$4)","v":0},{"$f":"COUNTIF(C13:AG13,Тех.лист!$E$5)","v":0},{"$f":"COUNTIF(C13:AG13,Тех.лист!$E$6)","v":0},{"$f":"COUNTIF(C13:AG13,Тех.лист!$E$7)","v":0}]
[6,{"$f":"IF(OR(Список!B12=0,Список!I12=0),0,Список!B12)","v":0},null,null,null,null,null,null,null,null,null,null,null,null,null,null,null,null,null,null,null,null,null,null,null,null,null,null,null,null,null,null,null,{"$f":"COUNTIF(C14:AG14,Тех.лист!$E$2)","v":0},{"$f":"COUNTIF(C14:AG14,Тех.лист!$E$3)","v":0},{"$f":"COUNTIF(C14:AG14,Тех.лист!$E$4)","v":0},{"$f":"COUNTIF(C14:AG14,Тех.лист!$E$5)","v":0},{"$f":"COUNTIF(C14:AG14,Тех.лист!$E$6)","v":0},{"$f":"COUNTIF(C14:AG14,Тех.лист!$E$7)","v":0}]
[7,{"$f":"IF(OR(Список!B13=0,Список!I13=0),0,Список!B13)","v":0},null,null,null,null,null,null,null,null,null,null,null,null,null,null,null,null,null,null,null,null,null,null,null,null,null,null,null,null,null,null,null,{"$f":"COUNTIF(C15:AG15,Тех.лист!$E$2)","v":0},{"$f":"COUNTIF(C15:AG15,Тех.лист!$E$3)","v":0},{"$f":"COUNTIF(C15:AG15,Тех.лист!$E$4)","v":0},{"$f":"COUNTIF(C15:AG15,Тех.лист!$E$5)","v":0},{"$f":"COUNTIF(C15:AG15,Тех.лист!$E$6)","v":0},{"$f":"COUNTIF(C15:AG15,Тех.лист!$E$7)","v":0}]
[8,{"$f":"IF(OR(Список!B14=0,Список!I14=0),0,Список!B14)","v":0},null,null,null,null,null,null,null,null,null,null,null,null,null,null,null,null,null,null,null,null,null,null,null,null,null,null,null,null,null,null,null,{"$f":"COUNTIF(C16:AG16,Тех.лист!$E$2)","v":0},{"$f":"COUNTIF(C16:AG16,Тех.лист!$E$3)","v":0},{"$f":"COUNTIF(C16:AG16,Тех.лист!$E$4)","v":0},{"$f":"COUNTIF(C16:AG16,Тех.лист!$E$5)","v":0},{"$f":"COUNTIF(C16:AG16,Тех.лист!$E$6)","v":0},{"$f":"COUNTIF(C16:AG16,Тех.лист!$E$7)","v":0}]
[9,{"$f":"IF(OR(Список!B15=0,Список!I15=0),0,Список!B15)","v":0},null,null,null,null,null,null,null,null,null,null,null,null,null,null,null,null,null,null,null,null,null,null,null,null,null,null,null,null,null,null,null,{"$f":"COUNTIF(C17:AG17,Тех.лист!$E$2)","v":0},{"$f":"COUNTIF(C17:AG17,Тех.лист!$E$3)","v":0},{"$f":"COUNTIF(C17:AG17,Тех.лист!$E$4)","v":0},{"$f":"COUNTIF(C17:AG17,Тех.лист!$E$5)","v":0},{"$f":"COUNTIF(C17:AG17,Тех.лист!$E$6)","v":0},{"$f":"COUNTIF(C17:AG17,Тех.лист!$E$7)","v":0}]
[10,{"$f":"IF(OR(Список!B16=0,Список!I16=0),0,Список!B16)","v":0},null,null,null,null,null,null,null,null,null,null,null,null,null,null,null,null,null,null,null,null,null,null,null,null,null,null,null,null,null,null,null,{"$f":"COUNTIF(C18:AG18,Тех.лист!$E$2)","v":0},{"$f":"COUNTIF(C18:AG18,Тех.лист!$E$3)","v":0},{"$f":"COUNTIF(C18:AG18,Тех.лист!$E$4)","v":0},{"$f":"COUNTIF(C18:AG18,Тех.лист!$E$5)","v":0},{"$f":"COUNTIF(C18:AG18,Тех.лист!$E$6)","v":0},{"$f":"COUNTIF(C18:AG18,Тех.лист!$E$7)","v":0}]
[11,{"$f":"IF(OR(Список!B17=0,Список!I17=0),0,Список!B17)","v":0},null,null,null,null,null,null,null,null,null,null,null,null,null,null,null,null,null,null,null,null,null,null,null,null,null,null,null,null,null,null,null,{"$f":"COUNTIF(C19:AG19,Тех.лист!$E$2)","v":0},{"$f":"COUNTIF(C19:AG19,Тех.лист!$E$3)","v":0},{"$f":"COUNTIF(C19:AG19,Тех.лист!$E$4)","v":0},{"$f":"COUNTIF(C19:AG19,Тех.лист!$E$5)","v":0},{"$f":"COUNTIF(C19:AG19,Тех.лист!$E$6)","v":0},{"$f":"COUNTIF(C19:AG19,Тех.лист!$E$7)","v":0}]
[12,{"$f":"IF(OR(Список!B18=0,Список!I18=0),0,Список!B18)","v":0},null,null,null,null,null,null,null,null,null,null,null,null,null,null,null,null,null,null,null,null,null,null,null,null,null,null,null,null,null,null,null,{"$f":"COUNTIF(C20:AG20,Тех.лист!$E$2)","v":0},{"$f":"COUNTIF(C20:AG20,Тех.лист!$E$3)","v":0},{"$f":"COUNTIF(C20:AG20,Тех.лист!$E$4)","v":0},{"$f":"COUNTIF(C20:AG20,Тех.лист!$E$5)","v":0},{"$f":"COUNTIF(C20:AG20,Тех.лист!$E$6)","v":0},{"$f":"COUNTIF(C20:AG20,Тех.лист!$E$7)","v":0}]
[13,{"$f":"IF(OR(Список!B19=0,Список!I19=0),0,Список!B19)","v":0},null,null,null,null,null,null,null,null,null,null,null,null,null,null,null,null,null,null,null,null,null,null,null,null,null,null,null,null,null,null,null,{"$f":"COUNTIF(C21:AG21,Тех.лист!$E$2)","v":0},{"$f":"COUNTIF(C21:AG21,Тех.лист!$E$3)","v":0},{"$f":"COUNTIF(C21:AG21,Тех.лист!$E$4)","v":0},{"$f":"COUNTIF(C21:AG21,Тех.лист!$E$5)","v":0},{"$f":"COUNTIF(C21:AG21,Тех.лист!$E$6)","v":0},{"$f":"COUNTIF(C21:AG21,Тех.лист!$E$7)","v":0}]
[14,{"$f":"IF(OR(Список!B20=0,Список!I20=0),0,Список!B20)","v":0},null,null,null,null,null,null,null,null,null,null,null,null,null,null,null,null,null,null,null,null,null,null,null,null,null,null,null,null,null,null,null,{"$f":"COUNTIF(C22:AG22,Тех.лист!$E$2)","v":0},{"$f":"COUNTIF(C22:AG22,Тех.лист!$E$3)","v":0},{"$f":"COUNTIF(C22:AG22,Тех.лист!$E$4)","v":0},{"$f":"COUNTIF(C22:AG22,Тех.лист!$E$5)","v":0},{"$f":"COUNTIF(C22:AG22,Тех.лист!$E$6)","v":0},{"$f":"COUNTIF(C22:AG22,Тех.лист!$E$7)","v":0}]
[15,{"$f":"IF(OR(Список!B21=0,Список!I21=0),0,Список!B21)","v":0},null,null,null,null,null,null,null,null,null,null,null,null,null,null,null,null,null,null,null,null,null,null,null,null,null,null,null,null,null,null,null,{"$f":"COUNTIF(C23:AG23,Тех.лист!$E$2)","v":0},{"$f":"COUNTIF(C23:AG23,Тех.лист!$E$3)","v":0},{"$f":"COUNTIF(C23:AG23,Тех.лист!$E$4)","v":0},{"$f":"COUNTIF(C23:AG23,Тех.лист!$E$5)","v":0},{"$f":"COUNTIF(C23:AG23,Тех.лист!$E$6)","v":0},{"$f":"COUNTIF(C23:AG23,Тех.лист!$E$7)","v":0}]
[16,{"$f":"IF(OR(Список!B22=0,Список!I22=0),0,Список!B22)","v":0},null,null,null,null,null,null,null,null,null,null,null,null,null,null,null,null,null,null,null,null,null,null,null,null,null,null,null,null,null,null,null,{"$f":"COUNTIF(C24:AG24,Тех.лист!$E$2)","v":0},{"$f":"COUNTIF(C24:AG24,Тех.лист!$E$3)","v":0},{"$f":"COUNTIF(C24:AG24,Тех.лист!$E$4)","v":0},{"$f":"COUNTIF(C24:AG24,Тех.лист!$E$5)","v":0},{"$f":"COUNTIF(C24:AG24,Тех.лист!$E$6)","v":0},{"$f":"COUNTIF(C24:AG24,Тех.лист!$E$7)","v":0}]
[17,{"$f":"IF(OR(Список!B23=0,Список!I23=0),0,Список!B23)","v":0},null,null,null,null,null,null,null,null,null,null,null,null,null,null,null,null,null,null,null,null,null,null,null,null,null,null,null,null,null,null,null,{"$f":"COUNTIF(C25:AG25,Тех.лист!$E$2)","v":0},{"$f":"COUNTIF(C25:AG25,Тех.лист!$E$3)","v":0},{"$f":"COUNTIF(C25:AG25,Тех.лист!$E$4)","v":0},{"$f":"COUNTIF(C25:AG25,Тех.лист!$E$5)","v":0},{"$f":"COUNTIF(C25:AG25,Тех.лист!$E$6)","v":0},{"$f":"COUNTIF(C25:AG25,Тех.лист!$E$7)","v":0}]
[18,{"$f":"IF(OR(Список!B24=0,Список!I24=0),0,Список!B24)","v":0},null,null,null,null,null,null,null,null,null,null,null,null,null,null,null,null,null,null,null,null,null,null,null,null,null,null,null,null,null,null,null,{"$f":"COUNTIF(C26:AG26,Тех.лист!$E$2)","v":0},{"$f":"COUNTIF(C26:AG26,Тех.лист!$E$3)","v":0},{"$f":"COUNTIF(C26:AG26,Тех.лист!$E$4)","v":0},{"$f":"COUNTIF(C26:AG26,Тех.лист!$E$5)","v":0},{"$f":"COUNTIF(C26:AG26,Тех.лист!$E$6)","v":0},{"$f":"COUNTIF(C26:AG26,Тех.лист!$E$7)","v":0}]
[19,{"$f":"IF(OR(Список!B25=0,Список!I25=0),0,Список!B25)","v":0},null,null,null,null,null,null,null,null,null,null,null,null,null,null,null,null,null,null,null,null,null,null,null,null,null,null,null,null,null,null,null,{"$f":"COUNTIF(C27:AG27,Тех.лист!$E$2)","v":0},{"$f":"COUNTIF(C27:AG27,Тех.лист!$E$3)","v":0},{"$f":"COUNTIF(C27:AG27,Тех.лист!$E$4)","v":0},{"$f":"COUNTIF(C27:AG27,Тех.лист!$E$5)","v":0},{"$f":"COUNTIF(C27:AG27,Тех.лист!$E$6)","v":0},{"$f":"COUNTIF(C27:AG27,Тех.лист!$E$7)","v":0}]
[20,{"$f":"IF(OR(Список!B26=0,Список!I26=0),0,Список!B26)","v":0},null,null,null,null,null,null,null,null,null,null,null,null,null,null,null,null,null,null,null,null,null,null,null,null,null,null,null,null,null,null,null,{"$f":"COUNTIF(C28:AG28,Тех.лист!$E$2)","v":0},{"$f":"COUNTIF(C28:AG28,Тех.лист!$E$3)","v":0},{"$f":"COUNTIF(C28:AG28,Тех.лист!$E$4)","v":0},{"$f":"COUNTIF(C28:AG28,Тех.лист!$E$5)","v":0},{"$f":"COUNTIF(C28:AG28,Тех.лист!$E$6)","v":0},{"$f":"COUNTIF(C28:AG28,Тех.лист!$E$7)","v":0}]
[21,{"$f":"IF(OR(Список!B27=0,Список!I27=0),0,Список!B27)","v":0},null,null,null,null,null,null,null,null,null,null,null,null,null,null,null,null,null,null,null,null,null,null,null,null,null,null,null,null,null,null,null,{"$f":"COUNTIF(C29:AG29,Тех.лист!$E$2)","v":0},{"$f":"COUNTIF(C29:AG29,Тех.лист!$E$3)","v":0},{"$f":"COUNTIF(C29:AG29,Тех.лист!$E$4)","v":0},{"$f":"COUNTIF(C29:AG29,Тех.лист!$E$5)","v":0},{"$f":"COUNTIF(C29:AG29,Тех.лист!$E$6)","v":0},{"$f":"COUNTIF(C29:AG29,Тех.лист!$E$7)","v":0}]
[22,{"$f":"IF(OR(Список!B28=0,Список!I28=0),0,Список!B28)","v":0},null,null,null,null,null,null,null,null,null,null,null,null,null,null,null,null,null,null,null,null,null,null,null,null,null,null,null,null,null,null,null,{"$f":"COUNTIF(C30:AG30,Тех.лист!$E$2)","v":0},{"$f":"COUNTIF(C30:AG30,Тех.лист!$E$3)","v":0},{"$f":"COUNTIF(C30:AG30,Тех.лист!$E$4)","v":0},{"$f":"COUNTIF(C30:AG30,Тех.лист!$E$5)","v":0},{"$f":"COUNTIF(C30:AG30,Тех.лист!$E$6)","v":0},{"$f":"COUNTIF(C30:AG30,Тех.лист!$E$7)","v":0}]
[23,{"$f":"IF(OR(Список!B29=0,Список!I29=0),0,Список!B29)","v":0},null,null,null,null,null,null,null,null,null,null,null,null,null,null,null,null,null,null,null,null,null,null,null,null,null,null,null,null,null,null,null,{"$f":"COUNTIF(C31:AG31,Тех.лист!$E$2)","v":0},{"$f":"COUNTIF(C31:AG31,Тех.лист!$E$3)","v":0},{"$f":"COUNTIF(C31:AG31,Тех.лист!$E$4)","v":0},{"$f":"COUNTIF(C31:AG31,Тех.лист!$E$5)","v":0},{"$f":"COUNTIF(C31:AG31,Тех.лист!$E$6)","v":0},{"$f":"COUNTIF(C31:AG31,Тех.лист!$E$7)","v":0}]
[24,{"$f":"IF(OR(Список!B30=0,Список!I30=0),0,Список!B30)","v":0},null,null,null,null,null,null,null,null,null,null,null,null,null,null,null,null,null,null,null,null,null,null,null,null,null,null,null,null,null,null,null,{"$f":"COUNTIF(C32:AG32,Тех.лист!$E$2)","v":0},{"$f":"COUNTIF(C32:AG32,Тех.лист!$E$3)","v":0},{"$f":"COUNTIF(C32:AG32,Тех.лист!$E$4)","v":0},{"$f":"COUNTIF(C32:AG32,Тех.лист!$E$5)","v":0},{"$f":"COUNTIF(C32:AG32,Тех.лист!$E$6)","v":0},{"$f":"COUNTIF(C32:AG32,Тех.лист!$E$7)","v":0}]
[25,{"$f":"IF(OR(Список!B31=0,Список!I31=0),0,Список!B31)","v":0},null,null,null,null,null,null,null,null,null,null,null,null,null,null,null,null,null,null,null,null,null,null,null,null,null,null,null,null,null,null,null,{"$f":"COUNTIF(C33:AG33,Тех.лист!$E$2)","v":0},{"$f":"COUNTIF(C33:AG33,Тех.лист!$E$3)","v":0},{"$f":"COUNTIF(C33:AG33,Тех.лист!$E$4)","v":0},{"$f":"COUNTIF(C33:AG33,Тех.лист!$E$5)","v":0},{"$f":"COUNTIF(C33:AG33,Тех.лист!$E$6)","v":0},{"$f":"COUNTIF(C33:AG33,Тех.лист!$E$7)","v":0}]
[26,{"$f":"IF(OR(Список!B32=0,Список!I32=0),0,Список!B32)","v":0},null,null,null,null,null,null,null,null,null,null,null,null,null,null,null,null,null,null,null,null,null,null,null,null,null,null,null,null,null,null,null,{"$f":"COUNTIF(C34:AG34,Тех.лист!$E$2)","v":0},{"$f":"COUNTIF(C34:AG34,Тех.лист!$E$3)","v":0},{"$f":"COUNTIF(C34:AG34,Тех.лист!$E$4)","v":0},{"$f":"COUNTIF(C34:AG34,Тех.лист!$E$5)","v":0},{"$f":"COUNTIF(C34:AG34,Тех.лист!$E$6)","v":0},{"$f":"COUNTIF(C34:AG34,Тех.лист!$E$7)","v":0}]
[27,{"$f":"IF(OR(Список!B33=0,Список!I33=0),0,Список!B33)","v":0},null,null,null,null,null,null,null,null,null,null,null,null,null,null,null,null,null,null,null,null,null,null,null,null,null,null,null,null,null,null,null,{"$f":"COUNTIF(C35:AG35,Тех.лист!$E$2)","v":0},{"$f":"COUNTIF(C35:AG35,Тех.лист!$E$3)","v":0},{"$f":"COUNTIF(C35:AG35,Тех.лист!$E$4)","v":0},{"$f":"COUNTIF(C35:AG35,Тех.лист!$E$5)","v":0},{"$f":"COUNTIF(C35:AG35,Тех.лист!$E$6)","v":0},{"$f":"COUNTIF(C35:AG35,Тех.лист!$E$7)","v":0}]
[28,{"$f":"IF(OR(Список!B34=0,Список!I34=0),0,Список!B34)","v":0},null,null,null,null,null,null,null,null,null,null,null,null,null,null,null,null,null,null,null,null,null,null,null,null,null,null,null,null,null,null,null,{"$f":"COUNTIF(C36:AG36,Тех.лист!$E$2)","v":0},{"$f":"COUNTIF(C36:AG36,Тех.лист!$E$3)","v":0},{"$f":"COUNTIF(C36:AG36,Тех.лист!$E$4)","v":0},{"$f":"COUNTIF(C36:AG36,Тех.лист!$E$5)","v":0},{"$f":"COUNTIF(C36:AG36,Тех.лист!$E$6)","v":0},{"$f":"COUNTIF(C36:AG36,Тех.лист!$E$7)","v":0}]
[29,{"$f":"IF(OR(Список!B35=0,Список!I35=0),0,Список!B35)","v":0},null,null,null,null,null,null,null,null,null,null,null,null,null,null,null,null,null,null,null,null,null,null,null,null,null,null,null,null,null,null,null,{"$f":"COUNTIF(C37:AG37,Тех.лист!$E$2)","v":0},{"$f":"COUNTIF(C37:AG37,Тех.лист!$E$3)","v":0},{"$f":"COUNTIF(C37:AG37,Тех.лист!$E$4)","v":0},{"$f":"COUNTIF(C37:AG37,Тех.лист!$E$5)","v":0},{"$f":"COUNTIF(C37:AG37,Тех.лист!$E$6)","v":0},{"$f":"COUNTIF(C37:AG37,Тех.лист!$E$7)","v":0}]
[30,{"$f":"IF(OR(Список!B36=0,Список!I36=0),0,Список!B36)","v":0},null,null,null,null,null,null,null,null,null,null,null,null,null,null,null,null,null,null,null,null,null,null,null,null,null,null,null,null,null,null,null,{"$f":"COUNTIF(C38:AG38,Тех.лист!$E$2)","v":0},{"$f":"COUNTIF(C38:AG38,Тех.лист!$E$3)","v":0},{"$f":"COUNTIF(C38:AG38,Тех.лист!$E$4)","v":0},{"$f":"COUNTIF(C38:AG38,Тех.лист!$E$5)","v":0},{"$f":"COUNTIF(C38:AG38,Тех.лист!$E$6)","v":0},{"$f":"COUNTIF(C38:AG38,Тех.лист!$E$7)","v":0}]
[31,{"$f":"IF(OR(Список!B37=0,Список!I37=0),0,Список!B37)","v":0},null,null,null,null,null,null,null,null,null,null,null,null,null,null,null,null,null,null,null,null,null,null,null,null,null,null,null,null,null,null,null,{"$f":"COUNTIF(C39:AG39,Тех.лист!$E$2)","v":0},{"$f":"COUNTIF(C39:AG39,Тех.лист!$E$3)","v":0},{"$f":"COUNTIF(C39:AG39,Тех.лист!$E$4)","v":0},{"$f":"COUNTIF(C39:AG39,Тех.лист!$E$5)","v":0},{"$f":"COUNTIF(C39:AG39,Тех.лист!$E$6)","v":0},{"$f":"COUNTIF(C39:AG39,Тех.лист!$E$7)","v":0}]
[32,{"$f":"IF(OR(Список!B38=0,Список!I38=0),0,Список!B38)","v":0},null,null,null,null,null,null,null,null,null,null,null,null,null,null,null,null,null,null,null,null,null,null,null,null,null,null,null,null,null,null,null,{"$f":"COUNTIF(C40:AG40,Тех.лист!$E$2)","v":0},{"$f":"COUNTIF(C40:AG40,Тех.лист!$E$3)","v":0},{"$f":"COUNTIF(C40:AG40,Тех.лист!$E$4)","v":0},{"$f":"COUNTIF(C40:AG40,Тех.лист!$E$5)","v":0},{"$f":"COUNTIF(C40:AG40,Тех.лист!$E$6)","v":0},{"$f":"COUNTIF(C40:AG40,Тех.лист!$E$7)","v":0}]
[33,{"$f":"IF(OR(Список!B39=0,Список!I39=0),0,Список!B39)","v":0},null,null,null,null,null,null,null,null,null,null,null,null,null,null,null,null,null,null,null,null,null,null,null,null,null,null,null,null,null,null,null,{"$f":"COUNTIF(C41:AG41,Тех.лист!$E$2)","v":0},{"$f":"COUNTIF(C41:AG41,Тех.лист!$E$3)","v":0},{"$f":"COUNTIF(C41:AG41,Тех.лист!$E$4)","v":0},{"$f":"COUNTIF(C41:AG41,Тех.лист!$E$5)","v":0},{"$f":"COUNTIF(C41:AG41,Тех.лист!$E$6)","v":0},{"$f":"COUNTIF(C41:AG41,Тех.лист!$E$7)","v":0}]
[34,{"$f":"IF(OR(Список!B40=0,Список!I40=0),0,Список!B40)","v":0},null,null,null,null,null,null,null,null,null,null,null,null,null,null,null,null,null,null,null,null,null,null,null,null,null,null,null,null,null,null,null,{"$f":"COUNTIF(C42:AG42,Тех.лист!$E$2)","v":0},{"$f":"COUNTIF(C42:AG42,Тех.лист!$E$3)","v":0},{"$f":"COUNTIF(C42:AG42,Тех.лист!$E$4)","v":0},{"$f":"COUNTIF(C42:AG42,Тех.лист!$E$5)","v":0},{"$f":"COUNTIF(C42:AG42,Тех.лист!$E$6)","v":0},{"$f":"COUNTIF(C42:AG42,Тех.лист!$E$7)","v":0}]
[35,{"$f":"IF(OR(Список!B41=0,Список!I41=0),0,Список!B41)","v":0},null,null,null,null,null,null,null,null,null,null,null,null,null,null,null,null,null,null,null,null,null,null,null,null,null,null,null,null,null,null,null,{"$f":"COUNTIF(C43:AG43,Тех.лист!$E$2)","v":0},{"$f":"COUNTIF(C43:AG43,Тех.лист!$E$3)","v":0},{"$f":"COUNTIF(C43:AG43,Тех.лист!$E$4)","v":0},{"$f":"COUNTIF(C43:AG43,Тех.лист!$E$5)","v":0},{"$f":"COUNTIF(C43:AG43,Тех.лист!$E$6)","v":0},{"$f":"COUNTIF(C43:AG43,Тех.лист!$E$7)","v":0}]
["Итого","(Т) Теория",{"$f":"COUNTIF(C9:C43,Тех.лист!$E$2)","v":0},{"$f":"COUNTIF(D9:D43,Тех.лист!$E$2)","v":0},{"$f":"COUNTIF(E9:E43,Тех.лист!$E$2)","v":0},{"$f":"COUNTIF(F9:F43,Тех.лист!$E$2)","v":0},{"$f":"COUNTIF(G9:G43,Тех.лист!$E$2)","v":0},{"$f":"COUNTIF(H9:H43,Тех.лист!$E$2)","v":0},{"$f":"COUNTIF(I9:I43,Тех.лист!$E$2)","v":0},{"$f":"COUNTIF(J9:J43,Тех.лист!$E$2)","v":0},{"$f":"COUNTIF(K9:K43,Тех.лист!$E$2)","v":0},{"$f":"COUNTIF(L9:L43,Тех.лист!$E$2)","v":0},{"$f":"COUNTIF(M9:M43,Тех.лист!$E$2)","v":0},{"$f":"COUNTIF(N9:N43,Тех.лист!$E$2)","v":0},{"$f":"COUNTIF(O9:O43,Тех.лист!$E$2)","v":0},{"$f":"COUNTIF(P9:P43,Тех.лист!$E$2)","v":0},{"$f":"COUNTIF(Q9:Q43,Тех.лист!$E$2)","v":0},{"$f":"COUNTIF(R9:R43,Тех.лист!$E$2)","v":0},{"$f":"COUNTIF(S9:S43,Тех.лист!$E$2)","v":0},{"$f":"COUNTIF(T9:T43,Тех.лист!$E$2)","v":0},{"$f":"COUNTIF(U9:U43,Тех.лист!$E$2)","v":0},{"$f":"COUNTIF(V9:V43,Тех.лист!$E$2)","v":0},{"$f":"COUNTIF(W9:W43,Тех.лист!$E$2)","v":0},{"$f":"COUNTIF(X9:X43,Тех.лист!$E$2)","v":0},{"$f":"COUNTIF(Y9:Y43,Тех.лист!$E$2)","v":0},{"$f":"COUNTIF(Z9:Z43,Тех.лист!$E$2)","v":0},{"$f":"COUNTIF(AA9:AA43,Тех.лист!$E$2)","v":0},{"$f":"COUNTIF(AB9:AB43,Тех.лист!$E$2)","v":0},{"$f":"COUNTIF(AC9:AC43,Тех.лист!$E$2)","v":0},{"$f":"COUNTIF(AD9:AD43,Тех.лист!$E$2)","v":0},{"$f":"COUNTIF(AE9:AE43,Тех.лист!$E$2)","v":0},{"$f":"COUNTIF(AF9:AF43,Тех.лист!$E$2)","v":0},{"$f":"COUNTIF(AG9:AG43,Тех.лист!$E$2)","v":0},{"$f":"IF(SUM(AH9:AH43)=SUM(C44:AG44),SUM(AH9:AH43),\"Ош\")","v":0}]
[null,"(ПК) Практика в колледже",{"$f":"COUNTIF(C9:C43,Тех.лист!$E$3)","v":0},{"$f":"COUNTIF(D9:D43,Тех.лист!$E$3)","v":0},{"$f":"COUNTIF(E9:E43,Тех.лист!$E$3)","v":0},{"$f":"COUNTIF(F9:F43,Тех.лист!$E$3)","v":0},{"$f":"COUNTIF(G9:G43,Тех.лист!$E$3)","v":0},{"$f":"COUNTIF(H9:H43,Тех.лист!$E$3)","v":0},{"$f":"COUNTIF(I9:I43,Тех.лист!$E$3)","v":0},{"$f":"COUNTIF(J9:J43,Тех.лист!$E$3)","v":0},{"$f":"COUNTIF(K9:K43,Тех.лист!$E$3)","v":0},{"$f":"COUNTIF(L9:L43,Тех.лист!$E$3)","v":0},{"$f":"COUNTIF(M9:M43,Тех.лист!$E$3)","v":0},{"$f":"COUNTIF(N9:N43,Тех.лист!$E$3)","v":0},{"$f":"COUNTIF(O9:O43,Тех.лист!$E$3)","v":0},{"$f":"COUNTIF(P9:P43,Тех.лист!$E$3)","v":0},{"$f":"COUNTIF(Q9:Q43,Тех.лист!$E$3)","v":0},{"$f":"COUNTIF(R9:R43,Тех.лист!$E$3)","v":0},{"$f":"COUNTIF(S9:S43,Тех.лист!$E$3)","v":0},{"$f":"COUNTIF(T9:T43,Тех.лист!$E$3)","v":0},{"$f":"COUNTIF(U9:U43,Тех.лист!$E$3)","v":0},{"$f":"COUNTIF(V9:V43,Тех.лист!$E$3)","v":0},{"$f":"COUNTIF(W9:W43,Тех.лист!$E$3)","v":0},{"$f":"COUNTIF(X9:X43,Тех.лист!$E$3)","v":0},{"$f":"COUNTIF(Y9:Y43,Тех.лист!$E$3)","v":0},{"$f":"COUNTIF(Z9:Z43,Тех.лист!$E$3)","v":0},{"$f":"COUNTIF(AA9:AA43,Тех.лист!$E$3)","v":0},{"$f":"COUNTIF(AB9:AB43,Тех.лист!$E$3)","v":0},{"$f":"COUNTIF(AC9:AC43,Тех.лист!$E$3)","v":0},{"$f":"COUNTIF(AD9:AD43,Тех.лист!$E$3)","v":0},{"$f":"COUNTIF(AE9:AE43,Тех.лист!$E$3)","v":0},{"$f":"COUNTIF(AF9:AF43,Тех.лист!$E$3)","v":0},{"$f":"COUNTIF(AG9:AG43,Тех.лист!$E$3)","v":0},null,{"$f":"IF(SUM(AI9:AI43)=SUM(C45:AG45),SUM(AI9:AI43),\"Ош\")","v":0}]
[null,"(ПП) Практика на предприятии",{"$f":"COUNTIF(C9:C43,Тех.лист!$E$4)","v":0},{"$f":"COUNTIF(D9:D43,Тех.лист!$E$4)","v":0},{"$f":"COUNTIF(E9:E43,Тех.лист!$E$4)","v":0},{"$f":"COUNTIF(F9:F43,Тех.лист!$E$4)","v":0},{"$f":"COUNTIF(G9:G43,Тех.лист!$E$4)","v":0},{"$f":"COUNTIF(H9:H43,Тех.лист!$E$4)","v":0},{"$f":"COUNTIF(I9:I43,Тех.лист!$E$4)","v":0},{"$f":"COUNTIF(J9:J43,Тех.лист!$E$4)","v":0},{"$f":"COUNTIF(K9:K43,Тех.лист!$E$4)","v":0},{"$f":"COUNTIF(L9:L43,Тех.лист!$E$4)","v":0},{"$f":"COUNTIF(M9:M43,Тех.лист!$E$4)","v":0},{"$f":"COUNTIF(N9:N43,Тех.лист!$E$4)","v":0},{"$f":"COUNTIF(O9:O43,Тех.лист!$E$4)","v":0},{"$f":"COUNTIF(P9:P43,Тех.лист!$E$4)","v":0},{"$f":"COUNTIF(Q9:Q43,Тех.лист!$E$4)","v":0},{"$f":"COUNTIF(R9:R43,Тех.лист!$E$4)","v":0},{"$f":"COUNTIF(S9:S43,Тех.лист!$E$4)","v":0},{"$f":"COUNTIF(T9:T43,Тех.лист!$E$4)","v":0},{"$f":"COUNTIF(U9:U43,Тех.лист!$E$4)","v":0},{"$f":"COUNTIF(V9:V43,Тех.лист!$E$4)","v":0},{"$f":"COUNTIF(W9:W43,Тех.лист!$E$4)","v":0},{"$f":"COUNTIF(X9:X43,Тех.лист!$E$4)","v":0},{"$f":"COUNTIF(Y9:Y43,Тех.лист!$E$4)","v":0},{"$f":"COUNTIF(Z9:Z43,Тех.лист!$E$4)","v":0},{"$f":"COUNTIF(AA9:AA43,Тех.лист!$E$4)","v":0},{"$f":"COUNTIF(AB9:AB43,Тех.лист!$E$4)","v":0},{"$f":"COUNTIF(AC9:AC43,Тех.лист!$E$4)","v":0},{"$f":"COUNTIF(AD9:AD43,Тех.лист!$E$4)","v":0},{"$f":"COUNTIF(AE9:AE43,Тех.лист!$E$4)","v":0},{"$f":"COUNTIF(AF9:AF43,Тех.лист!$E$4)","v":0},{"$f":"COUNTIF(AG9:AG43,Тех.лист!$E$4)","v":0},null,null,{"$f":"IF(SUM(AJ9:AJ43)=SUM(C46:AG46),SUM(AJ9:AJ43),\"Ош\")","v":0}]
[null,"(Н) Отсутствующие",{"$f":"COUNTIF(C9:C43,Тех.лист!$E$5)","v":0},{"$f":"COUNTIF(D9:D43,Тех.лист!$E$5)","v":0},{"$f":"COUNTIF(E9:E43,Тех.лист!$E$5)","v":0},{"$f":"COUNTIF(F9:F43,Тех.лист!$E$5)","v":0},{"$f":"COUNTIF(G9:G43,Тех.лист!$E$5)","v":0},{"$f":"COUNTIF(H9:H43,Тех.лист!$E$5)","v":0},{"$f":"COUNTIF(I9:I43,Тех.лист!$E$5)","v":0},{"$f":"COUNTIF(J9:J43,Тех.лист!$E$5)","v":0},{"$f":"COUNTIF(K9:K43,Тех.лист!$E$5)","v":0},{"$f":"COUNTIF(L9:L43,Тех.лист!$E$5)","v":0},{"$f":"COUNTIF(M9:M43,Тех.лист!$E$5)","v":0},{"$f":"COUNTIF(N9:N43,Тех.лист!$E$5)","v":0},{"$f":"COUNTIF(O9:O43,Тех.лист!$E$5)","v":0},{"$f":"COUNTIF(P9:P43,Тех.лист!$E$5)","v":0},{"$f":"COUNTIF(Q9:Q43,Тех.лист!$E$5)","v":0},{"$f":"COUNTIF(R9:R43,Тех.лист!$E$5)","v":0},{"$f":"COUNTIF(S9:S43,Тех.лист!$E$5)","v":0},{"$f":"COUNTIF(T9:T43,Тех.лист!$E$5)","v":0},{"$f":"COUNTIF(U9:U43,Тех.лист!$E$5)","v":0},{"$f":"COUNTIF(V9:V43,Тех.лист!$E$5)","v":0},{"$f":"COUNTIF(W9:W43,Тех.лист!$E$5)","v":0},{"$f":"COUNTIF(X9:X43,Тех.лист!$E$5)","v":0},{"$f":"COUNTIF(Y9:Y43,Тех.лист!$E$5)","v":0},{"$f":"COUNTIF(Z9:Z43,Тех.лист!$E$5)","v":0},{"$f":"COUNTIF(AA9:AA43,Тех.лист!$E$5)","v":0},{"$f":"COUNTIF(AB9:AB43,Тех.лист!$E$5)","v":0},{"$f":"COUNTIF(AC9:AC43,Тех.лист!$E$5)","v":0},{"$f":"COUNTIF(AD9:AD43,Тех.лист!$E$5)","v":0},{"$f":"COUNTIF(AE9:AE43,Тех.лист!$E$5)","v":0},{"$f":"COUNTIF(AF9:AF43,Тех.лист!$E$5)","v":0},{"$f":"COUNTIF(AG9:AG43,Тех.лист!$E$5)","v":0},null,null,null,{"$f":"IF(SUM(AK9:AK43)=SUM(C47:AG47),SUM(AK9:AK43),\"Ош\")","v":0}]
[null,"(С) Справка",{"$f":"COUNTIF(C9:C43,Тех.лист!$E$6)","v":0},{"$f":"COUNTIF(D9:D43,Тех.лист!$E$6)","v":0},{"$f":"COUNTIF(E9:E43,Тех.лист!$E$6)","v":0},{"$f":"COUNTIF(F9:F43,Тех.лист!$E$6)","v":0},{"$f":"COUNTIF(G9:G43,Тех.лист!$E$6)","v":0},{"$f":"COUNTIF(H9:H43,Тех.лист!$E$6)","v":0},{"$f":"COUNTIF(I9:I43,Тех.лист!$E$6)","v":0},{"$f":"COUNTIF(J9:J43,Тех.лист!$E$6)","v":0},{"$f":"COUNTIF(K9:K43,Тех.лист!$E$6)","v":0},{"$f":"COUNTIF(L9:L43,Тех.лист!$E$6)","v":0},{"$f":"COUNTIF(M9:M43,Тех.лист!$E$6)","v":0},{"$f":"COUNTIF(N9:N43,Тех.лист!$E$6)","v":0},{"$f":"COUNTIF(O9:O43,Тех.лист!$E$6)","v":0},{"$f":"COUNTIF(P9:P43,Тех.лист!$E$6)","v":0},{"$f":"COUNTIF(Q9:Q43,Тех.лист!$E$6)","v":0},{"$f":"COUNTIF(R9:R43,Тех.лист!$E$6)","v":0},{"$f":"COUNTIF(S9:S43,Тех.лист!$E$6)","v":0},{"$f":"COUNTIF(T9:T43,Тех.лист!$E$6)","v":0},{"$f":"COUNTIF(U9:U43,Тех.лист!$E$6)","v":0},{"$f":"COUNTIF(V9:V43,Тех.лист!$E$6)","v":0},{"$f":"COUNTIF(W9:W43,Тех.лист!$E$6)","v":0},{"$f":"COUNTIF(X9:X43,Тех.лист!$E$6)","v":0},{"$f":"COUNTIF(Y9:Y43,Тех.лист!$E$6)","v":0},{"$f":"COUNTIF(Z9:Z43,Тех.лист!$E$6)","v":0},{"$f":"COUNTIF(AA9:AA43,Тех.лист!$E$6)","v":0},{"$f":"COUNTIF(AB9:AB43,Тех.лист!$E$6)","v":0},{"$f":"COUNTIF(AC9:AC43,Тех.лист!$E$6)","v":0},{"$f":"COUNTIF(AD9:AD43,Тех.лист!$E$6)","v":0},{"$f":"COUNTIF(AE9:AE43,Тех.лист!$E$6)","v":0},{"$f":"COUNTIF(AF9:AF43,Тех.лист!$E$6)","v":0},{"$f":"COUNTIF(AG9:AG43,Тех.лист!$E$6)","v":0},null,null,null,null,{"$f":"IF(SUM(AL9:AL43)=SUM(C48:AG48),SUM(AL9:AL43),\"Ош\")","v":0}]
[null,"(ПР) Приказ",{"$f":"COUNTIF(C9:C43,Тех.лист!$E$7)","v":0},{"$f":"COUNTIF(D9:D43,Тех.лист!$E$7)","v":0},{"$f":"COUNTIF(E9:E43,Тех.лист!$E$7)","v":0},{"$f":"COUNTIF(F9:F43,Тех.лист!$E$7)","v":0},{"$f":"COUNTIF(G9:G43,Тех.лист!$E$7)","v":0},{"$f":"COUNTIF(H9:H43,Тех.лист!$E$7)","v":0},{"$f":"COUNTIF(I9:I43,Тех.лист!$E$7)","v":0},{"$f":"COUNTIF(J9:J43,Тех.лист!$E$7)","v":0},{"$f":"COUNTIF(K9:K43,Тех.лист!$E$7)","v":0},{"$f":"COUNTIF(L9:L43,Тех.лист!$E$7)","v":0},{"$f":"COUNTIF(M9:M43,Тех.лист!$E$7)","v":0},{"$f":"COUNTIF(N9:N43,Тех.лист!$E$7)","v":0},{"$f":"COUNTIF(O9:O43,Тех.лист!$E$7)","v":0},{"$f":"COUNTIF(P9:P43,Тех.лист!$E$7)","v":0},{"$f":"COUNTIF(Q9:Q43,Тех.лист!$E$7)","v":0},{"$f":"COUNTIF(R9:R43,Тех.лист!$E$7)","v":0},{"$f":"COUNTIF(S9:S43,Тех.лист!$E$7)","v":0},{"$f":"COUNTIF(T9:T43,Тех.лист!$E$7)","v":0},{"$f":"COUNTIF(U9:U43,Тех.лист!$E$7)","v":0},{"$f":"COUNTIF(V9:V43,Тех.лист!$E$7)","v":0},{"$f":"COUNTIF(W9:W43,Тех.лист!$E$7)","v":0},{"$f":"COUNTIF(X9:X43,Тех.лист!$E$7)","v":0},{"$f":"COUNTIF(Y9:Y43,Тех.лист!$E$7)","v":0},{"$f":"COUNTIF(Z9:Z43,Тех.лист!$E$7)","v":0},{"$f":"COUNTIF(AA9:AA43,Тех.лист!$E$7)","v":0},{"$f":"COUNTIF(AB9:AB43,Тех.лист!$E$7)","v":0},{"$f":"COUNTIF(AC9:AC43,Тех.лист!$E$7)","v":0},{"$f":"COUNTIF(AD9:AD43,Тех.лист!$E$7)","v":0},{"$f":"COUNTIF(AE9:AE43,Тех.лист!$E$7)","v":0},{"$f":"COUNTIF(AF9:AF43,Тех.лист!$E$7)","v":0},{"$f":"COUNTIF(AG9:AG43,Тех.лист!$E$7)","v":0},null,null,null,null,null,{"$f":"IF(SUM(AM9:AM43)=SUM(C49:AG49),SUM(AM9:AM43),\"Ош\")","v":0}]
[{"$f":"IF(Инструкция!T51=Тех.лист!C91,1,0)","v":0},"Данные по столовой",null,null,null,null,null,null,null,null,null,null,null,null,null,null,null,null,null,null,null,null,null,null,null,null,null,null,null,null,null,null,null,"AlexBor"]
[]
["3.4",{"$f":"IF(N5=0,0,Тех.лист!L5)","v":0},null,null,null,null,{"$f":"IF(N5=0,0,Тех.лист!L12)","v":0},null,null,null,null,null,"Старший мастер",null,null,null,null,null,null,null,"Шляпина Е. В.",null,null,null,null,{"$f":"Список!A44","v":0},null,null,null,null,null,null,null,{"$f":"Список!E44","v":0}]

{"sheet":"КВД","index":4,"n_rows":20,"n_cols":36,"rows_kept":20,"cut":false,"hidden":true,"merged":[[0,0,0,2],[16,1,18,1],[16,2,18,2],[1,0,1,2],[10,0,10,2],[11,0,11,2],[2,0,2,2],[6,0,6,2],[15,0,15,2],[3,1,5,1],[3,2,5,2],[7,1,9,1],[7,2,9,2],[12,1,14,1],[12,2,14,2]]}
["Корректировка выходных дней"]
["Табель"]
["Выходные дни"]
[null,{"$f":"Табель!Y6","v":0},{"$f":"Табель!AB6","v":2017},null,null,null,"C","D","E","F","G","H","I","J","K","L","M","N","O","P","Q","R","S","T","U","W","V","X","Y","Z","AA","AB","AC","AD","AE","AF"]
[]
[]
["Будние дни"]
[null,{"$f":"Табель!Y6","v":0},{"$f":"Табель!AB6","v":2017},null,"A","B","C","D","E","F","G","H","I","J","K","L","M","N","O","P","Q","R","S","T","U","W","V","X","Y","Z","AA","AB","AC","AD","AE","AF"]
[]
[]
["Корректирующий табель"]
["Выходные дни"]
[null,{"$f":"'Кор. табель'!Y6","v":0},{"$f":"'Кор. табель'!AB6","v":2017},null,"A","B","C","D","E","F","G","H","I","J","K","L","M","N","O","P","Q","R","S","T","U","W","V","X","Y","Z","AA","AB","AC","AD","AE","AF"]
[]
[]
["Будние дни"]
[null,{"$f":"'Кор. табель'!Y6","v":0},{"$f":"'Кор. табель'!AB6","v":2017},null,"A","B","C","D","E","F","G","H","I","J","K","L","M","N","O","P","Q","R","S","T","U","W","V","X","Y","Z","AA","AB","AC","AD","AE","AF"]
[]
[]
[null,null,"AlexBor"]

{"sheet":"Кор. табель","index":5,"n_rows":48,"n_cols":35,"rows_kept":48,"cut":false,"hidden":false,"merged":[[0,2,0,4],[47,2,47,5],[47,6,47,11],[47,12,47,16],[47,17,47,19],[46,1,46,11],[46,12,46,24],[43,0,44,0],[0,29,0,34],[1,0,1,1],[1,3,1,4],[6,0,7,0],[6,33,6,34],[2,0,2,1],[3,0,3,1],[4,0,4,12],[4,13,4,18],[2,2,3,30],[2,31,2,34],[3,31,3,34],[0,5,1,28],[5,29,5,34],[5,0,5,16],[4,31,4,33],[4,19,4,30],[1,31,1,34],[1,29,1,30],[47,25,47,28],[5,17,5,19],[5,27,5,28],[47,33,47,34],[46,25,46,34],[47,29,47,32],[45,33,45,34],[5,24,5,26],[47,20,47,24]]}
[{"$f":"Табель!A1","v":1},{"$f":"IF(A48>Тех.лист!J91,\"Эта версия новее, чем на сайте\",IF(A48=Тех.лист!J91,\"\",\"Скачать новую версию\"))","v":""},null,null,null,"Корректирующий ",null,null,null,null,null,null,null,null,null,null,null,null,null,null,null,null,null,null,null,null,null,null,null,{"$f":"Табель!AD1","v":"Приложение к приказу №233 от 01.09.2016г."}]
[{"$f":"Табель!A2","v":"Количество обучающихся в группе:"},null,{"$f":"Список!F42","v":0},{"$f":"Табель!D2","v":"чел."},null,null,null,null,null,null,null,null,null,null,null,null,null,null,null,null,null,null,null,null,null,null,null,null,null,null,null,{"$f":"Табель!AF2","v":"Утверждаю"}]
[{"$f":"NOW()","v":"2017-05-04T13:09:52.260"},null,"табель учёта посещаемости обучающимися практических и теоретических занятий",null,null,null,null,null,null,null,null,null,null,null,null,null,null,null,null,null,null,null,null,null,null,null,null,null,null,null,null,{"$f":"Табель!AF3","v":"Директор ГБПОУ МО \"Подольский"}]
[null,null,null,null,null,null,null,null,null,null,null,null,null,null,null,null,null,null,null,null,null,null,null,null,null,null,null,null,null,null,null,{"$f":"Табель!AF4","v":"колледж имени А. В. Никулина\""}]
["(",null,null,null,null,null,null,null,null,null,null,null,null,{"$f":"Список!D2","v":0},null,null,null,null,null,")",null,null,null,null,null,null,null,null,null,null,null,null,null,null,{"$f":"Табель!AK5","v":"С. В. Ступин"}]
[{"$f":"Табель!A6","v":"ГБПОУ МО \"Подольский колледж имени А. В. Никулина\""},null,null,null,null,null,null,null,null,null,null,null,null,null,null,null,null,{"$f":"Табель!R6","v":"группы №"},null,null,{"$f":"Список!E4","v":0},"/",{"$f":"Список!G4","v":0},"за",{"$f":"Тех.лист!C63","v":0},null,null,{"$f":"IF(Табель!Y6=Тех.лист!C2,Тех.лист!C58,Тех.лист!C59)","v":2017},null,"год"]
["№ п/п","Числа и дни месяца",1,2,3,4,5,6,7,8,9,10,11,12,13,14,15,16,17,18,19,20,21,22,23,24,25,26,27,28,29,30,31,"Итого"]
[null,"Ф. И. О. обучающегося",{"$f":"Тех.лист!G26","v":"Вт"},{"$f":"Тех.лист!G27","v":"Ср"},{"$f":"Тех.лист!G28","v":"Чт"},{"$f":"Тех.лист!G29","v":"Пт"},{"$f":"Тех.лист!G30","v":"Сб"},{"$f":"Тех.лист!G31","v":"Вс"},{"$f":"Тех.лист!G32","v":"Пн"},{"$f":"C8","v":"Вт"},"Ср","Чт","Пт","Сб","Вс","Пн","Вт","Ср","Чт","Пт","Сб","Вс","Пн","Вт","Ср","Чт","Пт","Сб","Вс","Пн","Вт","Ср","Чт","(С) Справка","(ПР) Приказ"]
[1,null,null,null,null,null,null,null,null,null,null,null,null,null,null,null,null,null,null,null,null,null,null,null,null,null,null,null,null,null,null,null,null,{"$f":"COUNTIF(C9:AG9,Тех.лист!$E$6)","v":0},{"$f":"COUNTIF(C9:AG9,Тех.лист!$E$7)","v":0}]
[2,null,null,null,null,null,null,null,null,null,null,null,null,null,null,null,null,null,null,null,null,null,null,null,null,null,null,null,null,null,null,null,null,{"$f":"COUNTIF(C10:AG10,Тех.лист!$E$6)","v":0},{"$f":"COUNTIF(C10:AG10,Тех.лист!$E$7)","v":0}]
[3,null,null,null,null,null,null,null,null,null,null,null,null,null,null,null,null,null,null,null,null,null,null,null,null,null,null,null,null,null,null,null,null,{"$f":"COUNTIF(C11:AG11,Тех.лист!$E$6)","v":0},{"$f":"COUNTIF(C11:AG11,Тех.лист!$E$7)","v":0}]
[4,null,null,null,null,null,null,null,null,null,null,null,null,null,null,null,null,null,null,null,null,null,null,null,null,null,null,null,null,null,null,null,null,{"$f":"COUNTIF(C12:AG12,Тех.лист!$E$6)","v":0},{"$f":"COUNTIF(C12:AG12,Тех.лист!$E$7)","v":0}]
[5,null,null,null,null,null,null,null,null,null,null,null,null,null,null,null,null,null,null,null,null,null,null,null,null,null,null,null,null,null,null,null,null,{"$f":"COUNTIF(C13:AG13,Тех.лист!$E$6)","v":0},{"$f":"COUNTIF(C13:AG13,Тех.лист!$E$7)","v":0}]
[6,null,null,null,null,null,null,null,null,null,null,null,null,null,null,null,null,null,null,null,null,null,null,null,null,null,null,null,null,null,null,null,null,{"$f":"COUNTIF(C14:AG14,Тех.лист!$E$6)","v":0},{"$f":"COUNTIF(C14:AG14,Тех.лист!$E$7)","v":0}]
[7,null,null,null,null,null,null,null,null,null,null,null,null,null,null,null,null,null,null,null,null,null,null,null,null,null,null,null,null,null,null,null,null,{"$f":"COUNTIF(C15:AG15,Тех.лист!$E$6)","v":0},{"$f":"COUNTIF(C15:AG15,Тех.лист!$E$7)","v":0}]
[8,null,null,null,null,null,null,null,null,null,null,null,null,null,null,null,null,null,null,null,null,null,null,null,null,null,null,null,null,null,null,null,null,{"$f":"COUNTIF(C16:AG16,Тех.лист!$E$6)","v":0},{"$f":"COUNTIF(C16:AG16,Тех.лист!$E$7)","v":0}]
[9,null,null,null,null,null,null,null,null,null,null,null,null,null,null,null,null,null,null,null,null,null,null,null,null,null,null,null,null,null,null,null,null,{"$f":"COUNTIF(C17:AG17,Тех.лист!$E$6)","v":0},{"$f":"COUNTIF(C17:AG17,Тех.лист!$E$7)","v":0}]
[10,null,null,null,null,null,null,null,null,null,null,null,null,null,null,null,null,null,null,null,null,null,null,null,null,null,null,null,null,null,null,null,null,{"$f":"COUNTIF(C18:AG18,Тех.лист!$E$6)","v":0},{"$f":"COUNTIF(C18:AG18,Тех.лист!$E$7)","v":0}]
[11,null,null,null,null,null,null,null,null,null,null,null,null,null,null,null,null,null,null,null,null,null,null,null,null,null,null,null,null,null,null,null,null,{"$f":"COUNTIF(C19:AG19,Тех.лист!$E$6)","v":0},{"$f":"COUNTIF(C19:AG19,Тех.лист!$E$7)","v":0}]
[12,null,null,null,null,null,null,null,null,null,null,null,null,null,null,null,null,null,null,null,null,null,null,null,null,null,null,null,null,null,null,null,null,{"$f":"COUNTIF(C20:AG20,Тех.лист!$E$6)","v":0},{"$f":"COUNTIF(C20:AG20,Тех.лист!$E$7)","v":0}]
[13,null,null,null,null,null,null,null,null,null,null,null,null,null,null,null,null,null,null,null,null,null,null,null,null,null,null,null,null,null,null,null,null,{"$f":"COUNTIF(C21:AG21,Тех.лист!$E$6)","v":0},{"$f":"COUNTIF(C21:AG21,Тех.лист!$E$7)","v":0}]
[14,null,null,null,null,null,null,null,null,null,null,null,null,null,null,null,null,null,null,null,null,null,null,null,null,null,null,null,null,null,null,null,null,{"$f":"COUNTIF(C22:AG22,Тех.лист!$E$6)","v":0},{"$f":"COUNTIF(C22:AG22,Тех.лист!$E$7)","v":0}]
[15,null,null,null,null,null,null,null,null,null,null,null,null,null,null,null,null,null,null,null,null,null,null,null,null,null,null,null,null,null,null,null,null,{"$f":"COUNTIF(C23:AG23,Тех.лист!$E$6)","v":0},{"$f":"COUNTIF(C23:AG23,Тех.лист!$E$7)","v":0}]
[16,null,null,null,null,null,null,null,null,null,null,null,null,null,null,null,null,null,null,null,null,null,null,null,null,null,null,null,null,null,null,null,null,{"$f":"COUNTIF(C24:AG24,Тех.лист!$E$6)","v":0},{"$f":"COUNTIF(C24:AG24,Тех.лист!$E$7)","v":0}]
[17,null,null,null,null,null,null,null,null,null,null,null,null,null,null,null,null,null,null,null,null,null,null,null,null,null,null,null,null,null,null,null,null,{"$f":"COUNTIF(C25:AG25,Тех.лист!$E$6)","v":0},{"$f":"COUNTIF(C25:AG25,Тех.лист!$E$7)","v":0}]
[18,null,null,null,null,null,null,null,null,null,null,null,null,null,null,null,null,null,null,null,null,null,null,null,null,null,null,null,null,null,null,null,null,{"$f":"COUNTIF(C26:AG26,Тех.лист!$E$6)","v":0},{"$f":"COUNTIF(C26:AG26,Тех.лист!$E$7)","v":0}]
[19,null,null,null,null,null,null,null,null,null,null,null,null,null,null,null,null,null,null,null,null,null,null,null,null,null,null,null,null,null,null,null,null,{"$f":"COUNTIF(C27:AG27,Тех.лист!$E$6)","v":0},{"$f":"COUNTIF(C27:AG27,Тех.лист!$E$7)","v":0}]
[20,null,null,null,null,null,null,null,null,null,null,null,null,null,null,null,null,null,null,null,null,null,null,null,null,null,null,null,null,null,null,null,null,{"$f":"COUNTIF(C28:AG28,Тех.лист!$E$6)","v":0},{"$f":"COUNTIF(C28:AG28,Тех.лист!$E$7)","v":0}]
[21,null,null,null,null,null,null,null,null,null,null,null,null,null,null,null,null,null,null,null,null,null,null,null,null,null,null,null,null,null,null,null,null,{"$f":"COUNTIF(C29:AG29,Тех.лист!$E$6)","v":0},{"$f":"COUNTIF(C29:AG29,Тех.лист!$E$7)","v":0}]
[22,null,null,null,null,null,null,null,null,null,null,null,null,null,null,null,null,null,null,null,null,null,null,null,null,null,null,null,null,null,null,null,null,{"$f":"COUNTIF(C30:AG30,Тех.лист!$E$6)","v":0},{"$f":"COUNTIF(C30:AG30,Тех.лист!$E$7)","v":0}]
[23,null,null,null,null,null,null,null,null,null,null,null,null,null,null,null,null,null,null,null,null,null,null,null,null,null,null,null,null,null,null,null,null,{"$f":"COUNTIF(C31:AG31,Тех.лист!$E$6)","v":0},{"$f":"COUNTIF(C31:AG31,Тех.лист!$E$7)","v":0}]
[24,null,null,null,null,null,null,null,null,null,null,null,null,null,null,null,null,null,null,null,null,null,null,null,null,null,null,null,null,null,null,null,null,{"$f":"COUNTIF(C32:AG32,Тех.лист!$E$6)","v":0},{"$f":"COUNTIF(C32:AG32,Тех.лист!$E$7)","v":0}]
[25,null,null,null,null,null,null,null,null,null,null,null,null,null,null,null,null,null,null,null,null,null,null,null,null,null,null,null,null,null,null,null,null,{"$f":"COUNTIF(C33:AG33,Тех.лист!$E$6)","v":0},{"$f":"COUNTIF(C33:AG33,Тех.лист!$E$7)","v":0}]
[26,null,null,null,null,null,null,null,null,null,null,null,null,null,null,null,null,null,null,null,null,null,null,null,null,null,null,null,null,null,null,null,null,{"$f":"COUNTIF(C34:AG34,Тех.лист!$E$6)","v":0},{"$f":"COUNTIF(C34:AG34,Тех.лист!$E$7)","v":0}]
[27,null,null,null,null,null,null,null,null,null,null,null,null,null,null,null,null,null,null,null,null,null,null,null,null,null,null,null,null,null,null,null,null,{"$f":"COUNTIF(C35:AG35,Тех.лист!$E$6)","v":0},{"$f":"COUNTIF(C35:AG35,Тех.лист!$E$7)","v":0}]
[28,null,null,null,null,null,null,null,null,null,null,null,null,null,null,null,null,null,null,null,null,null,null,null,null,null,null,null,null,null,null,null,null,{"$f":"COUNTIF(C36:AG36,Тех.лист!$E$6)","v":0},{"$f":"COUNTIF(C36:AG36,Тех.лист!$E$7)","v":0}]
[29,null,null,null,null,null,null,null,null,null,null,null,null,null,null,null,null,null,null,null,null,null,null,null,null,null,null,null,null,null,null,null,null,{"$f":"COUNTIF(C37:AG37,Тех.лист!$E$6)","v":0},{"$f":"COUNTIF(C37:AG37,Тех.лист!$E$7)","v":0}]
[30,null,null,null,null,null,null,null,null,null,null,null,null,null,null,null,null,null,null,null,null,null,null,null,null,null,null,null,null,null,null,null,null,{"$f":"COUNTIF(C38:AG38,Тех.лист!$E$6)","v":0},{"$f":"COUNTIF(C38:AG38,Тех.лист!$E$7)","v":0}]
[31,null,null,null,null,null,null,null,null,null,null,null,null,null,null,null,null,null,null,null,null,null,null,null,null,null,null,null,null,null,null,null,null,{"$f":"COUNTIF(C39:AG39,Тех.лист!$E$6)","v":0},{"$f":"COUNTIF(C39:AG39,Тех.лист!$E$7)","v":0}]
[32,null,null,null,null,null,null,null,null,null,null,null,null,null,null,null,null,null,null,null,null,null,null,null,null,null,null,null,null,null,null,null,null,{"$f":"COUNTIF(C40:AG40,Тех.лист!$E$6)","v":0},{"$f":"COUNTIF(C40:AG40,Тех.лист!$E$7)","v":0}]
[33,null,null,null,null,null,null,null,null,null,null,null,null,null,null,null,null,null,null,null,null,null,null,null,null,null,null,null,null,null,null,null,null,{"$f":"COUNTIF(C41:AG41,Тех.лист!$E$6)","v":0},{"$f":"COUNTIF(C41:AG41,Тех.лист!$E$7)","v":0}]
[34,null,null,null,null,null,null,null,null,null,null,null,null,null,null,null,null,null,null,null,null,null,null,null,null,null,null,null,null,null,null,null,null,{"$f":"COUNTIF(C42:AG42,Тех.лист!$E$6)","v":0},{"$f":"COUNTIF(C42:AG42,Тех.лист!$E$7)","v":0}]
[35,null,null,null,null,null,null,null,null,null,null,null,null,null,null,null,null,null,null,null,null,null,null,null,null,null,null,null,null,null,null,null,null,{"$f":"COUNTIF(C43:AG43,Тех.лист!$E$6)","v":0},{"$f":"COUNTIF(C43:AG43,Тех.лист!$E$7)","v":0}]
[{"$f":"Табель!A50","v":0},"(С) Справка",{"$f":"COUNTIF(C9:C43,Тех.лист!$E$6)","v":0},{"$f":"COUNTIF(D9:D43,Тех.лист!$E$6)","v":0},{"$f":"COUNTIF(E9:E43,Тех.лист!$E$6)","v":0},{"$f":"COUNTIF(F9:F43,Тех.лист!$E$6)","v":0},{"$f":"COUNTIF(G9:G43,Тех.лист!$E$6)","v":0},{"$f":"COUNTIF(H9:H43,Тех.лист!$E$6)","v":0},{"$f":"COUNTIF(I9:I43,Тех.лист!$E$6)","v":0},{"$f":"COUNTIF(J9:J43,Тех.лист!$E$6)","v":0},{"$f":"COUNTIF(K9:K43,Тех.лист!$E$6)","v":0},{"$f":"COUNTIF(L9:L43,Тех.лист!$E$6)","v":0},{"$f":"COUNTIF(M9:M43,Тех.лист!$E$6)","v":0},{"$f":"COUNTIF(N9:N43,Тех.лист!$E$6)","v":0},{"$f":"COUNTIF(O9:O43,Тех.лист!$E$6)","v":0},{"$f":"COUNTIF(P9:P43,Тех.лист!$E$6)","v":0},{"$f":"COUNTIF(Q9:Q43,Тех.лист!$E$6)","v":0},{"$f":"COUNTIF(R9:R43,Тех.лист!$E$6)","v":0},{"$f":"COUNTIF(S9:S43,Тех.лист!$E$6)","v":0},{"$f":"COUNTIF(T9:T43,Тех.лист!$E$6)","v":0},{"$f":"COUNTIF(U9:U43,Тех.лист!$E$6)","v":0},{"$f":"COUNTIF(V9:V43,Тех.лист!$E$6)","v":0},{"$f":"COUNTIF(W9:W43,Тех.лист!$E$6)","v":0},{"$f":"COUNTIF(X9:X43,Тех.лист!$E$6)","v":0},{"$f":"COUNTIF(Y9:Y43,Тех.лист!$E$6)","v":0},{"$f":"COUNTIF(Z9:Z43,Тех.лист!$E$6)","v":0},{"$f":"COUNTIF(AA9:AA43,Тех.лист!$E$6)","v":0},{"$f":"COUNTIF(AB9:AB43,Тех.лист!$E$6)","v":0},{"$f":"COUNTIF(AC9:AC43,Тех.лист!$E$6)","v":0},{"$f":"COUNTIF(AD9:AD43,Тех.лист!$E$6)","v":0},{"$f":"COUNTIF(AE9:AE43,Тех.лист!$E$6)","v":0},{"$f":"COUNTIF(AF9:AF43,Тех.лист!$E$6)","v":0},{"$f":"COUNTIF(AG9:AG43,Тех.лист!$E$6)","v":0},{"$f":"IF(SUM(AH9:AH43)=SUM(C44:AG44),SUM(AH9:AH43),\"Ош\")","v":0}]
[null,"(ПР) Приказ",{"$f":"COUNTIF(C9:C43,Тех.лист!$E$7)","v":0},{"$f":"COUNTIF(D9:D43,Тех.лист!$E$7)","v":0},{"$f":"COUNTIF(E9:E43,Тех.лист!$E$7)","v":0},{"$f":"COUNTIF(F9:F43,Тех.лист!$E$7)","v":0},{"$f":"COUNTIF(G9:G43,Тех.лист!$E$7)","v":0},{"$f":"COUNTIF(H9:H43,Тех.лист!$E$7)","v":0},{"$f":"COUNTIF(I9:I43,Тех.лист!$E$7)","v":0},{"$f":"COUNTIF(J9:J43,Тех.лист!$E$7)","v":0},{"$f":"COUNTIF(K9:K43,Тех.лист!$E$7)","v":0},{"$f":"COUNTIF(L9:L43,Тех.лист!$E$7)","v":0},{"$f":"COUNTIF(M9:M43,Тех.лист!$E$7)","v":0},{"$f":"COUNTIF(N9:N43,Тех.лист!$E$7)","v":0},{"$f":"COUNTIF(O9:O43,Тех.лист!$E$7)","v":0},{"$f":"COUNTIF(P9:P43,Тех.лист!$E$7)","v":0},{"$f":"COUNTIF(Q9:Q43,Тех.лист!$E$7)","v":0},{"$f":"COUNTIF(R9:R43,Тех.лист!$E$7)","v":0},{"$f":"COUNTIF(S9:S43,Тех.лист!$E$7)","v":0},{"$f":"COUNTIF(T9:T43,Тех.лист!$E$7)","v":0},{"$f":"COUNTIF(U9:U43,Тех.лист!$E$7)","v":0},{"$f":"COUNTIF(V9:V43,Тех.лист!$E$7)","v":0},{"$f":"COUNTIF(W9:W43,Тех.лист!$E$7)","v":0},{"$f":"COUNTIF(X9:X43,Тех.лист!$E$7)","v":0},{"$f":"COUNTIF(Y9:Y43,Тех.лист!$E$7)","v":0},{"$f":"COUNTIF(Z9:Z43,Тех.лист!$E$7)","v":0},{"$f":"COUNTIF(AA9:AA43,Тех.лист!$E$7)","v":0},{"$f":"COUNTIF(AB9:AB43,Тех.лист!$E$7)","v":0},{"$f":"COUNTIF(AC9:AC43,Тех.лист!$E$7)","v":0},{"$f":"COUNTIF(AD9:AD43,Тех.лист!$E$7)","v":0},{"$f":"COUNTIF(AE9:AE43,Тех.лист!$E$7)","v":0},{"$f":"COUNTIF(AF9:AF43,Тех.лист!$E$7)","v":0},{"$f":"COUNTIF(AG9:AG43,Тех.лист!$E$7)","v":0},null,{"$f":"IF(SUM(AI9:AI43)=SUM(C45:AG45),SUM(AI9:AI43),\"Ош\")","v":0}]
[null,null,null,null,null,null,null,null,null,null,null,null,null,null,null,null,null,null,null,null,null,null,null,null,null,null,null,null,null,null,null,null,null,"AlexBor"]
[]
[{"$f":"Табель!A52","v":"3.4"},{"$f":"Табель!B52","v":0},null,null,null,null,{"$f":"Табель!G52","v":0},null,null,null,null,null,"Старший мастер",null,null,null,null,null,null,null,"Шляпина Е. В.",null,null,null,null,{"$f":"Список!A44","v":0},null,null,null,null,null,null,null,{"$f":"Список!E44","v":0}]

{"sheet":"Стипендия","index":6,"n_rows":50,"n_cols":12,"rows_kept":50,"cut":false,"hidden":false,"merged":[[2,10,2,11],[2,0,2,3],[1,0,1,3],[3,0,3,3],[5,11,7,11],[0,4,3,4],[0,8,3,8],[0,5,1,7],[2,5,3,7],[5,5,5,9],[6,6,6,9],[6,5,7,5],[6,3,7,3],[44,0,44,11],[4,0,4,11],[6,4,7,4],[5,3,5,4],[5,1,7,1],[5,0,7,0],[5,10,7,10],[5,2,7,2],[43,1,43,2],[48,1,49,1],[49,7,49,11],[45,6,45,11],[46,0,46,11],[45,3,45,4],[47,3,47,4],[49,3,49,4],[48,3,48,4],[47,10,47,11],[48,10,48,11],[48,7,48,8],[47,7,47,8],[45,0,45,2],[47,0,47,2]]}
[{"$f":"Табель!A1","v":1},{"$f":"IF(A50>Тех.лист!J91,\"Эта версия новее, чем на сайте\",IF(A50=Тех.лист!J91,\"\",\"Скачать новую версию\"))","v":""},"Протокол №",{"$f":"Тех.лист!K14","v":0},null,null,null,null,null,"Курс:",{"$f":"Список!C4","v":0}]
["Заседания стипендиальной комиссии ",null,null,null,null,null,null,null,null,"Группа:",{"$f":"IF(Табель!W6=0,Табель!U6,CONCATENATE(Табель!U6,Табель!V6,Табель!W6))","v":0}]
["ГБПОУ МО \"Подольский колледж имени А. В. Никулина\"",null,null,null,null,{"$f":"Табель!N5","v":0},null,null,null,{"$f":"Табель!Z52","v":0},{"$f":"Табель!AH52","v":0}]
["от \"____\" _______________ 201__ года",null,null,null,null,null,null,null,null,null,{"$f":"Тех.лист!C59","v":2017},"года"]
[]
["№ п/п","Ф. И. О. обучающегося","Поимён-\nный номер","Назначение",null,"Повышение",null,null,null,null,"ИТОГО","Доп. стипендия детям-сиротам"]
[null,null,null,"Академичес-\nкая стипендия","Социальная стипендия","За успехи в учебной деятельности","За участие в мероприятиях"]
[null,null,null,null,null,null,"Внутри колледжа","Городских","Областных","Всерос-\nсийских"]
[1,{"$f":"Табель!B9","v":0},{"$f":"Список!I7","v":0},null,null,null,null,null,null,null,{"$f":"SUM(D9:J9)","v":0}]
[2,{"$f":"Табель!B10","v":0},{"$f":"Список!I8","v":0},null,null,null,null,null,null,null,0]
[3,{"$f":"Табель!B11","v":0},{"$f":"Список!I9","v":0},null,null,null,null,null,null,null,0]
[4,{"$f":"Табель!B12","v":0},{"$f":"Список!I10","v":0},null,null,null,null,null,null,null,0]
[5,{"$f":"Табель!B13","v":0},{"$f":"Список!I11","v":0},null,null,null,null,null,null,null,0]
[6,{"$f":"Табель!B14","v":0},{"$f":"Список!I12","v":0},null,null,null,null,null,null,null,0]
[7,{"$f":"Табель!B15","v":0},{"$f":"Список!I13","v":0},null,null,null,null,null,null,null,0]
[8,{"$f":"Табель!B16","v":0},{"$f":"Список!I14","v":0},null,null,null,null,null,null,null,0]
[9,{"$f":"Табель!B17","v":0},{"$f":"Список!I15","v":0},null,null,null,null,null,null,null,0]
[10,{"$f":"Табель!B18","v":0},{"$f":"Список!I16","v":0},null,null,null,null,null,null,null,0]
[11,{"$f":"Табель!B19","v":0},{"$f":"Список!I17","v":0},null,null,null,null,null,null,null,0]
[12,{"$f":"Табель!B20","v":0},{"$f":"Список!I18","v":0},null,null,null,null,null,null,null,0]
[13,{"$f":"Табель!B21","v":0},{"$f":"Список!I19","v":0},null,null,null,null,null,null,null,0]
[14,{"$f":"Табель!B22","v":0},{"$f":"Список!I20","v":0},null,null,null,null,null,null,null,0]
[15,{"$f":"Табель!B23","v":0},{"$f":"Список!I21","v":0},null,null,null,null,null,null,null,0]
[16,{"$f":"Табель!B24","v":0},{"$f":"Список!I22","v":0},null,null,null,null,null,null,null,0]
[17,{"$f":"Табель!B25","v":0},{"$f":"Список!I23","v":0},null,null,null,null,null,null,null,0]
[18,{"$f":"Табель!B26","v":0},{"$f":"Список!I24","v":0},null,null,null,null,null,null,null,0]
[19,{"$f":"Табель!B27","v":0},{"$f":"Список!I25","v":0},null,null,null,null,null,null,null,0]
[20,{"$f":"Табель!B28","v":0},{"$f":"Список!I26","v":0},null,null,null,null,null,null,null,0]
[21,{"$f":"Табель!B29","v":0},{"$f":"Список!I27","v":0},null,null,null,null,null,null,null,0]
[22,{"$f":"Табель!B30","v":0},{"$f":"Список!I28","v":0},null,null,null,null,null,null,null,0]
[23,{"$f":"Табель!B31","v":0},{"$f":"Список!I29","v":0},null,null,null,null,null,null,null,0]
[24,{"$f":"Табель!B32","v":0},{"$f":"Список!I30","v":0},null,null,null,null,null,null,null,0]
[25,{"$f":"Табель!B33","v":0},{"$f":"Список!I31","v":0},null,null,null,null,null,null,null,0]
[26,{"$f":"Табель!B34","v":0},{"$f":"Список!I32","v":0},null,null,null,null,null,null,null,0]
[27,{"$f":"Табель!B35","v":0},{"$f":"Список!I33","v":0},null,null,null,null,null,null,null,0]
[28,{"$f":"Табель!B36","v":0},{"$f":"Список!I34","v":0},null,null,null,null,null,null,null,0]
[29,{"$f":"Табель!B37","v":0},{"$f":"Список!I35","v":0},null,null,null,null,null,null,null,0]
[30,{"$f":"Табель!B38","v":0},{"$f":"Список!I36","v":0},null,null,null,null,null,null,null,0]
[31,{"$f":"Табель!B39","v":0},{"$f":"Список!I37","v":0},null,null,null,null,null,null,null,0]
[32,{"$f":"Табель!B40","v":0},{"$f":"Список!I38","v":0},null,null,null,null,null,null,null,0]
[33,{"$f":"Табель!B41","v":0},{"$f":"Список!I39","v":0},null,null,null,null,null,null,null,0]
[34,{"$f":"Табель!B42","v":0},{"$f":"Список!I40","v":0},null,null,null,null,null,null,null,0]
[35,{"$f":"Табель!B43","v":0},{"$f":"Список!I41","v":0},null,null,null,null,null,null,null,0]
[{"$f":"Инструкция!AX51","v":0},"ИТОГО",null,{"$f":"SUM(D9:D43)","v":0},0,0,0,0,0,0,0,0]
[]
["Председатель комиссии:",null,null,{"$f":"Тех.лист!L20","v":"Зам. директора по УР"},null,null,"М. Д. Лебедь-Шарлевич"]
[]
["Члены комиссии:",null,null,"Ответственный секретарь",null,null,"Е. С. Купцова",{"$f":"IF(Табель!N5=0,0,Тех.лист!L30)","v":0},null,null,{"$f":"IF(Табель!N5=0,0,Тех.лист!M30)","v":0}]
[null,null,null,{"$f":"IF(Табель!N5=0,0,Тех.лист!L36)","v":0},null,null,{"$f":"IF(Табель!N5=0,0,Тех.лист!M36)","v":0},{"$f":"Табель!Z52","v":0},null,null,{"$f":"Табель!AH52","v":0}]
[{"$f":"Табель!A52","v":"3.4"},null,null,"Старший мастер",null,null,"Е. В. Шляпина","AlexBor"]

{"sheet":"Звонки","index":7,"n_rows":24,"n_cols":11,"rows_kept":24,"cut":false,"hidden":false,"merged":[[24,0,24,10],[23,5,23,10],[23,3,23,4],[5,0,5,10],[7,10,9,10],[10,10,11,10],[12,10,15,10],[16,10,17,10],[19,0,19,10],[22,0,22,10],[20,10,21,10],[18,0,18,10],[6,0,6,10],[8,0,8,1],[0,4,0,10],[1,4,1,10],[2,4,2,10],[3,4,3,7],[23,0,23,2],[4,6,4,8],[3,8,3,10],[4,4,4,5],[0,0,4,3]]}
[null,null,null,null,"Утверждаю"]
[null,null,null,null,"Директор ГБПОУ МО \"Подольский"]
[null,null,null,null,"колледж имени А. В. Никулина\""]
[null,null,null,null,null,null,null,null,"С. В. Ступин"]
[null,null,null,null,null,null,null,null,null,{"$f":"Тех.лист!C59","v":2017},"г."]
[]
["Расписание звонков"]
[1,"урок",null,8,":","15","-","9",":","00","1 пара"]
["Завтрак",null,null,"9",":","00","-","9",":","10"]
[2,"урок",null,"9",":","10","-","9",":","55"]
[3,"урок",null,"10",":","05","-","10",":","50","2 пара"]
[4,"урок",null,"11",":","00","-","11",":","45"]
["I","обед",null,"11",":","45","-","12",":","05","3 пара"]
[5,"урок",null,"12",":","05","-","12",":","50"]
["II","обед",null,"12",":","50","-","13",":","05"]
[6,"урок",null,"13",":","05","-","13",":","50"]
[7,"урок",null,"13",":","55","-","14",":","40","4 пара"]
[8,"урок",null,"14",":","45","-","15",":","30"]
[]
["Расписание практики"]
[1,"смена",null,"8",":","00","-",14,":","00"]
[2,"смена",null,14,":","00","-",20,":","00"]
[]
[{"$f":"IF(Табель!N5=0,0,Тех.лист!L19)","v":0},null,null,null,null,{"$f":"Тех.лист!L23","v":0}]

{"sheet":"История","index":8,"n_rows":317,"n_cols":19,"rows_kept":317,"cut":false,"hidden":false,"merged":[[147,5,152,5],[174,5,175,5],[155,6,155,23],[156,6,156,23],[148,6,148,23],[113,6,113,23],[116,6,116,23],[118,6,118,23],[119,6,119,23],[120,6,120,23],[121,6,121,23],[122,6,122,23],[123,6,123,23],[128,6,128,23],[135,6,135,23],[140,6,140,23],[126,6,126,23],[114,6,114,23],[115,6,115,23],[117,6,117,23],[133,6,133,23],[143,6,143,23],[144,6,144,23],[129,6,129,23],[200,6,200,23],[194,6,194,23],[182,5,183,5],[182,6,182,23],[183,6,183,23],[184,6,184,23],[177,6,177,23],[189,6,189,23],[186,5,187,5],[49,6,49,23],[53,6,53,23],[52,6,52,23],[50,6,50,23],[51,6,51,23],[157,6,157,23],[158,6,158,23],[159,6,159,23],[192,6,192,23],[190,6,190,23],[172,6,172,23],[178,6,178,23],[173,6,173,23],[176,6,176,23],[96,6,96,23],[97,6,97,23],[152,6,152,23],[150,6,150,23],[151,6,151,23],[180,6,180,23],[179,6,179,23],[186,6,186,23],[153,6,153,23],[154,6,154,23],[210,5,211,5],[208,6,208,23],[205,6,205,23],[201,6,201,23],[203,6,203,23],[202,6,202,23],[204,6,204,23],[211,6,211,23],[206,6,206,23],[207,6,207,23],[230,5,231,5],[250,6,250,23],[242,6,242,23],[214,6,214,23],[215,6,215,23],[218,6,218,23],[219,6,219,23],[214,5,215,5],[227,6,227,23],[224,6,224,23],[223,6,223,23],[220,6,220,23],[217,6,217,23],[216,6,216,23],[226,6,226,23],[234,6,234,23],[230,6,230,23],[231,6,231,23],[233,6,233,23],[232,6,232,23],[221,6,221,23],[222,6,222,23],[255,6,255,23],[256,6,256,23],[290,6,290,23],[235,6,235,23],[259,6,259,23],[281,5,282,5],[285,6,285,23],[279,6,279,23],[289,6,289,23],[256,5,257,5],[257,6,257,23],[236,6,236,23],[240,6,240,23],[239,6,239,23],[237,6,237,23],[238,6,238,23],[241,6,241,23],[245,6,245,23],[236,5,237,5],[239,5,240,5],[253,5,254,5],[265,6,265,23],[248,6,248,23],[263,6,263,23],[313,6,313,23],[269,6,269,23],[268,6,268,23],[270,6,270,23],[266,6,266,23],[261,6,261,23],[264,6,264,23],[262,6,262,23],[267,6,267,23],[272,6,272,23],[307,6,307,23],[308,6,308,23],[302,6,302,23],[278,6,278,23],[229,0,234,2],[235,0,258,2],[259,0,266,2],[267,0,271,2],[272,0,273,2],[213,3,228,4],[229,3,234,4],[235,3,258,4],[259,3,266,4],[267,3,271,4],[272,3,273,4],[196,0,212,2],[196,3,212,4],[92,6,92,23],[66,6,66,23],[68,6,68,23],[70,6,70,23],[75,6,75,23],[87,6,87,23],[90,6,90,23],[91,6,91,23],[82,6,82,23],[69,6,69,23],[71,6,71,23],[93,6,93,23],[91,5,93,5],[101,6,101,23],[102,6,102,23],[94,6,94,23],[98,6,98,23],[99,6,99,23],[195,6,195,23],[198,5,200,5],[107,0,111,2],[107,3,111,4],[0,0,0,23],[1,0,1,4],[1,5,1,23],[56,6,56,23],[57,6,57,23],[74,6,74,23],[76,6,76,23],[77,6,77,23],[61,6,61,23],[62,6,62,23],[63,6,63,23],[58,6,58,23],[59,6,59,23],[60,6,60,23],[56,0,98,2],[56,3,98,4],[64,6,64,23],[65,6,65,23],[67,6,67,23],[73,6,73,23],[86,6,86,23],[95,6,95,23],[18,6,18,23],[19,6,19,23],[254,6,254,23],[247,6,247,23],[212,6,212,23],[191,6,191,23],[197,6,197,23],[185,6,185,23],[193,6,193,23],[103,6,103,23],[104,6,104,23],[225,6,225,23],[213,6,213,23],[229,6,229,23],[249,6,249,10],[249,12,249,16],[249,18,249,23],[243,6,243,23],[244,6,244,23],[251,6,251,23],[252,6,252,23],[209,6,209,23],[210,6,210,23],[198,6,198,23],[199,6,199,23],[132,6,132,23],[99,0,106,2],[112,0,123,2],[112,3,123,4],[246,6,246,23],[196,6,196,23],[99,3,106,4],[108,6,108,23],[105,6,105,23],[106,6,106,23],[111,6,111,23],[107,6,107,23],[112,6,112,23],[100,6,100,23],[110,6,110,23],[109,6,109,23],[188,6,188,23],[124,0,144,2],[124,3,144,4],[145,0,188,2],[145,3,188,4],[189,0,195,2],[228,6,228,23],[189,3,195,4],[187,6,187,23],[213,0,228,2],[315,0,316,2],[315,3,316,4],[315,6,315,23],[311,6,311,23],[314,6,314,23],[311,0,314,2],[311,3,314,4],[312,6,312,23],[316,6,316,23],[303,0,310,2],[303,3,310,4],[309,6,309,23],[303,6,303,23],[276,6,276,23],[275,6,275,23],[274,6,274,23],[304,6,304,23],[310,6,310,23],[298,6,298,23],[300,6,300,23],[299,6,299,23],[292,3,302,4],[253,6,253,23],[292,0,302,2],[293,6,293,23],[295,6,295,23],[296,6,296,23],[297,6,297,23],[274,0,276,2],[274,3,276,4],[258,6,258,23],[273,6,273,23],[271,6,271,23],[292,6,292,23],[294,6,294,23],[277,0,291,2],[277,3,291,4],[280,6,280,23],[281,6,281,23],[282,6,282,23],[287,6,287,23],[288,6,288,23],[291,6,291,23],[283,6,283,23],[284,6,284,23],[260,6,260,23],[262,5,263,5],[307,5,308,5],[290,5,291,5],[301,6,301,23],[277,6,277,23],[286,6,286,23],[146,6,146,23],[147,6,147,23],[149,6,149,23],[181,6,181,23],[171,6,171,23],[160,6,160,23],[168,6,168,23],[161,6,161,23],[162,6,162,23],[163,6,163,23],[164,6,164,23],[165,6,165,23],[164,5,165,5],[170,6,170,23],[169,6,169,23],[174,6,174,23],[175,6,175,23],[306,6,306,23],[305,6,305,23],[10,6,10,23],[11,6,11,23],[12,6,12,23],[10,5,12,5],[81,5,82,5],[61,5,63,5],[84,6,84,23],[80,6,80,23],[81,6,81,23],[83,6,83,23],[32,6,32,23],[34,6,34,23],[23,6,23,23],[31,6,31,23],[17,6,17,23],[72,6,72,23],[78,6,78,23],[20,6,20,23],[28,6,28,23],[55,6,55,23],[54,6,54,23],[79,6,79,23],[14,6,14,23],[24,6,24,23],[2,6,2,23],[2,0,55,2],[2,3,55,4],[3,6,3,23],[33,6,33,23],[43,6,43,23],[44,6,44,23],[4,6,4,23],[5,6,5,23],[8,6,8,23],[9,6,9,23],[21,6,21,23],[29,6,29,23],[6,6,6,23],[7,6,7,23],[30,6,30,23],[22,6,22,23],[39,6,39,23],[40,6,40,23],[41,6,41,23],[42,6,42,23],[16,6,16,23],[15,6,15,23],[13,6,13,23],[88,6,88,23],[89,6,89,23],[85,6,85,23],[124,6,124,23],[145,6,145,23],[125,6,125,23],[127,6,127,23],[166,6,166,23],[167,6,167,23],[134,6,134,23],[136,6,136,23],[137,6,137,23],[138,6,138,23],[142,6,142,23],[130,6,130,23],[139,6,139,23],[141,6,141,23],[131,6,131,23],[45,6,45,23],[46,6,46,23],[47,5,48,5],[47,6,47,23],[48,6,48,23],[25,6,25,23],[26,5,27,5],[26,6,26,23],[27,6,27,23],[35,6,35,23],[36,6,36,23],[37,5,38,5],[37,6,37,23],[38,6,38,23]]}
["История версий"]
["Версия табеля",null,null,null,null,"Описание изменений"]
["04.05\n2017",null,null,"3.4",null,"●","Улучшена защита."]
[null,null,null,null,null,"●","Изменён адрес сайта в проверки версии табеля."]
[null,null,null,null,null,null,"Лист Инструкция:"]
[null,null,null,null,null,"●","Улучшена инструкция."]
[null,null,null,null,null,"●","Улучшена технология проверки версии программы Microsoft"]
[null,null,null,null,null,null,"Office на кнопке «Проверить версию MS Office»."]
[null,null,null,null,null,null,"Лист Список:"]
[null,null,null,null,null,"●","Фамилия, имя, отчество отображаются в строке формул."]
[null,null,null,null,null,"¿","Если Вы допустите опечатку в Ф. И. О., то просто исправьте"]
[null,null,null,null,null,null,"её в строке формул (или кликните двойным щелчком левой"]
[null,null,null,null,null,null,"кнопкой мышки на ячейке с ошибкой)."]
[null,null,null,null,null,"●","Увеличена максимальная длина символов в столбце «Ф. И. О."]
[null,null,null,null,null,null,"обучающегося» с 30 символов до 35 символов."]
[null,null,null,null,null,"●","Вместо ошибки о превышении количества символов в столбце"]
[null,null,null,null,null,null,"«Ф. И. О. обучающегося» будет выводиться предупреждение."]
[null,null,null,null,null,"●","Отчисленные студенты выделяются (закрашивается ячейка)"]
[null,null,null,null,null,null,"и не считаются в строке «Количество обучающихся в группе»."]
[null,null,null,null,null,"¿","При условии, что «От» будет стоять 1-го числа месяца."]
[null,null,null,null,null,"●","Обновлена гиперссылка для перехода на новый адрес сайта."]
[null,null,null,null,null,null,"Лист Табель:"]
[null,null,null,null,null,"●","Исправлена ячейка «Количество обучающихся в группе»."]
[null,null,null,null,null,"●","Обновлена гиперссылка для перехода на новый адрес сайта."]
[null,null,null,null,null,"●","Улучшено отображение формата ячеек столбца «Ф. И. О."]
[null,null,null,null,null,null,"обучающегося»"]
[null,null,null,null,null,"¿","При превышении количества символов (35) – размер шрифта"]
[null,null,null,null,null,null,"будет уменьшаться."]
[null,null,null,null,null,"●","Убраны выходные дни при незаполненной ячейке «Месяц»."]
[null,null,null,null,null,"●","Исправлены «Сообщения об ошибке»."]
[null,null,null,null,null,"●","Исправлена опечатка в «Сообщениях об ошибке»."]
[null,null,null,null,null,"¿","В связи с добавлением пункта в выпадающем меню – «От»."]
[null,null,null,null,null,null,"Лист Кор. табель:"]
[null,null,null,null,null,"●","Обновлена гиперссылка для перехода на новый адрес сайта."]
[null,null,null,null,null,"●","Исправлена ошибка с 29 февраля (день недели)."]
[null,null,null,null,null,"●","Улучшено отображение формата ячеек столбца «Ф. И. О."]
[null,null,null,null,null,null,"обучающегося»"]
[null,null,null,null,null,"¿","При превышении количества символов (35) – размер шрифта"]
[null,null,null,null,null,null,"будет уменьшаться."]
[null,null,null,null,null,"●","Убраны выходные дни при незаполненной ячейке «Месяц»."]
[null,null,null,null,null,"●","Исправлены «Сообщения об ошибке»."]
[null,null,null,null,null,"●","Исправлена опечатка в «Сообщениях об ошибке»."]
[null,null,null,null,null,"●","Мелкие улучшения."]
[null,null,null,null,null,null,"Лист Стипендия:"]
[null,null,null,null,null,"●","Обновлена гиперссылка для перехода на новый адрес сайта."]
[null,null,null,null,null,"●","Улучшено отображение формата ячеек столбца «Ф. И. О."]
[null,null,null,null,null,null,"обучающегося»"]
[null,null,null,null,null,"¿","При превышении количества символов (35) – размер шрифта"]
[null,null,null,null,null,null,"будет уменьшаться."]
[null,null,null,null,null,null,"Лист Звонки:"]
[null,null,null,null,null,"●","Исправлена проверка вводимых значений в расписании"]
[null,null,null,null,null,null,"звонков производственного обучения (Расписание практики)."]
[null,null,null,null,null,"●","Исправлено время в расписании звонков производственного"]
[null,null,null,null,null,null,"обучения (Расписание практики)."]
[null,null,null,null,null,null,"Лист История:"]
[null,null,null,null,null,"●","Восстановлена история."]
["19.12\n2016",null,null,"3.3",null,"●","Создан лист: История"]
[null,null,null,null,null,null,"Начиная с текущей версии и далее, будет вестись журнал"]
[null,null,null,null,null,null,"версий табеля, где будут описаны все изменения и улучшения"]
[null,null,null,null,null,null,"последующих версий, а также будет восстановлен журнал"]
[null,null,null,null,null,null,"изменений предыдущих версий."]
[null,null,null,null,null,"¿","Восстанавливаемый журнал предыдущих версий табеля"]
[null,null,null,null,null,null,"может содержать в себе не все сведения бывших изменений"]
[null,null,null,null,null,null,"и улучшений."]
[null,null,null,null,null,null,"Лист Приказ:"]
[null,null,null,null,null,"●","Скрыты неактивные листы."]
[null,null,null,null,null,null,"Лист Инструкция:"]
[null,null,null,null,null,"●","Обновлена инструкция."]
[null,null,null,null,null,"●","Скрыты неактивные листы."]
[null,null,null,null,null,null,"Лист Список:"]
[null,null,null,null,null,"●","Обновлён список сотрудников."]
[null,null,null,null,null,"●","Небольшие изменения условий проверки выпадающего списка"]
[null,null,null,null,null,null,"сотрудников."]
[null,null,null,null,null,"●","Скрыты неактивные листы."]
[null,null,null,null,null,null,"Лист Табель:"]
[null,null,null,null,null,"●","Исправлена ошибка с авто заполнением значений по столбцу."]
[null,null,null,null,null,"●","Добавлен пункт в выпадающем меню – «От»."]
[null,null,null,null,null,"¿","От – отчислен(а)."]
[null,null,null,null,null,"●","Обновлены условия проверки для каждого обучающегося, по"]
[null,null,null,null,null,null,"строкам месяца, в связи с этим:"]
[null,null,null,null,null,"●","Обновлён принцип заполнения значений."]
[null,null,null,null,null,"¿","Теперь Вы не сможете ввести значения, пока не заполните"]
[null,null,null,null,null,null,"«Ф. И. О.» и «Поимённый номер» на листе «Список»."]
[null,null,null,null,null,"●","Обновлено условное форматирование праздничных дней в"]
[null,null,null,null,null,null,"числах месяца."]
[null,null,null,null,null,"●","Исправлены опечатки в информации об ошибках."]
[null,null,null,null,null,"●","Скрыты неактивные листы."]
[null,null,null,null,null,null,"Лист Кор. табель:"]
[null,null,null,null,null,"●","Обновлены условия проверки в столбце «Ф. И. О."]
[null,null,null,null,null,null,"обучающегося», в связи с этим:"]
[null,null,null,null,null,"●","Обновлён принцип заполнения значений."]
[null,null,null,null,null,"¿","Заполнить «Ф. И. О. обучающихся» можно столько, сколько"]
[null,null,null,null,null,null,"есть заполненных «Ф. И. О.» и «Поимённый номер» на листе"]
[null,null,null,null,null,null,"«Список»."]
[null,null,null,null,null,"●","Скрыты неактивные листы."]
[null,null,null,null,null,null,"Лист Стипендия:"]
[null,null,null,null,null,"●","Скрыты неактивные листы."]
[null,null,null,null,null,null,"Лист Звонки:"]
[null,null,null,null,null,"●","Скрыты неактивные листы."]
["15.12\n2016",null,null,"3.2",null,null,"Лист Инструкция:"]
[null,null,null,null,null,"●","Обновлена инструкция."]
[null,null,null,null,null,null,"Лист Список:"]
[null,null,null,null,null,"●","Обновлён список сотрудников."]
[null,null,null,null,null,"●","Исправлена ошибка, из-за которой могла не видеться часть"]
[null,null,null,null,null,null,"наименования заголовка."]
[null,null,null,null,null,null,"Лист Табель:"]
[null,null,null,null,null,"●","Исправлена ошибка в днях недель."]
["08.11\n2016",null,null,"3.1",null,null,"Лист Табель:"]
[null,null,null,null,null,"●","Исправлено авто заполнение значений со всего столбца на"]
[null,null,null,null,null,null,"количество человек в группе."]
[null,null,null,null,null,"●","Убраны нули в итогах."]
[null,null,null,null,null,"●","Обновлено условное форматирование выходных дней."]
["07.10\n2016",null,null,"3.0",null,null,"Лист Приказ:"]
[null,null,null,null,null,"●","Обновлён приказ."]
[null,null,null,null,null,null,"Лист Список:"]
[null,null,null,null,null,"●","Обновлён список сотрудников."]
[null,null,null,null,null,null,"Лист Табель:"]
[null,null,null,null,null,"●","Обновлена информация на строчке «Приложение к приказу...»."]
[null,null,null,null,null,"●","Обновлено условное форматирование строки «Данные по"]
[null,null,null,null,null,null,"столовой»."]
[null,null,null,null,null,"●","Маленькие улучшения."]
[null,null,null,null,null,null,"Лист Кор. табель:"]
[null,null,null,null,null,"●","Обновлена информация на строчке «Приложение к приказу...»."]
[null,null,null,null,null,"●","Маленькие улучшения."]
["03.10\n2016",null,null,"2.9",null,null,"Лист Список:"]
[null,null,null,null,null,"●","Изменено наименование образовательного учреждения."]
[null,null,null,null,null,"●","Улучшена активная гиперссылка."]
[null,null,null,null,null,null,"Лист Табель:"]
[null,null,null,null,null,"●","Улучшена активная гиперссылка."]
[null,null,null,null,null,"●","Обновлена информация на строчке «Приложение к приказу...»."]
[null,null,null,null,null,"●","Изменено наименование образовательного учреждения."]
[null,null,null,null,null,"●","Убрано сообщение для ввода при проверке вводимых"]
[null,null,null,null,null,null,"значений."]
[null,null,null,null,null,"●","Изменена должность заведующих СП."]
[null,null,null,null,null,null,"Лист Кор. табель:"]
[null,null,null,null,null,"●","Улучшена активная гиперссылка."]
[null,null,null,null,null,"●","Обновлена информация на строчке «Приложение к приказу...»."]
[null,null,null,null,null,"●","Изменено наименование образовательного учреждения."]
[null,null,null,null,null,"●","Изменена должность заведующих СП."]
[null,null,null,null,null,null,"Лист Стипендия:"]
[null,null,null,null,null,"●","Улучшена активная гиперссылка."]
[null,null,null,null,null,"●","Изменено наименование образовательного учреждения."]
[null,null,null,null,null,"●","Изменена должность заведующих СП."]
[null,null,null,null,null,null,"Лист Звонки:"]
[null,null,null,null,null,"●","Изменено наименование образовательного учреждения."]
["30.05\n2016",null,null,"2.8",null,"●","Ярлыки листов перекрашены в другие цвета."]
[null,null,null,null,null,"●","Создан лист: Список"]
[null,null,null,null,null,"¿","Столбец «Ф. И. О. обучающегося» теперь заполняется на"]
[null,null,null,null,null,null,"этом листе и автоматически «Стипендия». Так же сюда"]
[null,null,null,null,null,null,"перенесены все “красные ячейки” с листа «Табель» (кроме"]
[null,null,null,null,null,null,"ячейки «Месяц»). Заполнение столбца «Поимённый номер»"]
[null,null,null,null,null,null,"является обязательным, иначе Вы не увидите список"]
[null,null,null,null,null,null,"обучающихся на других листах."]
[null,null,null,null,null,null,"Лист Приказ:"]
[null,null,null,null,null,"●","Улучшен вид приказа."]
[null,null,null,null,null,null,"Лист Инструкция:"]
[null,null,null,null,null,"●","Добавлена кнопка проверки версии программы Microsoft Office."]
[null,null,null,null,null,"¿","Для проверки поддержки версии Microsoft Office с табелем."]
[null,null,null,null,null,"●","Улучшена инструкция."]
[null,null,null,null,null,null,"Лист Табель:"]
[null,null,null,null,null,"●","В связи с созданием листа «Список», ячейки с выбором:"]
[null,null,null,null,null,null,"корпуса, № группы, должности, Фамилии И. О. сотрудника, а"]
[null,null,null,null,null,null,"также столбец с «Ф. И. О. обучающихся» заполняются"]
[null,null,null,null,null,null,"автоматически."]
[null,null,null,null,null,"¿","При условии заполнения всех красных ячеек и столбца с"]
[null,null,null,null,null,null,"«Ф. И. О. обучающегося» на листе «Список»."]
[null,null,null,null,null,"●","Добавлено сообщение для ввода при проверке вводимых"]
[null,null,null,null,null,null,"значений."]
[null,null,null,null,null,"●","Улучшен дизайн таблицы."]
[null,null,null,null,null,"●","Добавлена пасхалка."]
[null,null,null,null,null,null,"Лист Кор. табель:"]
[null,null,null,null,null,"●","В связи с созданием листа «Список», ячейки в столбце"]
[null,null,null,null,null,null,"«Ф. И. О. обучающегося» не заполняются автоматически, а"]
[null,null,null,null,null,null,"выбираются из выпадающего списка."]
[null,null,null,null,null,"¿","При условии заполнения «Ф. И. О. обучающихся» на листе"]
[null,null,null,null,null,null,"«Список»."]
[null,null,null,null,null,"●","В столбце «Ф. И. О. обучающегося» добавлено сообщение для"]
[null,null,null,null,null,null,"ввода."]
[null,null,null,null,null,null,"Лист Стипендия:"]
[null,null,null,null,null,"●","Добавлена активная гиперссылкассылка на официальный сайт"]
[null,null,null,null,null,null,"для скачивания новых версий."]
[null,null,null,null,null,"●","Ячейка «Курс:» заполняется автоматически."]
[null,null,null,null,null,"¿","При условии заполнения соответствующей ячейки на листе"]
[null,null,null,null,null,null,"«Список»."]
[null,null,null,null,null,"●","В связи с созданием листа «Список», добавился новый"]
[null,null,null,null,null,null,"столбец – «Поимённый номер»."]
[null,null,null,null,null,"¿","Заполняется автоматически, при условии заполнения"]
[null,null,null,null,null,null,"столбца «Поимённый номер» на листе «Список»."]
[null,null,null,null,null,"●","Небольшие изменения."]
["28.03\n2016",null,null,"2.7",null,null,"Лист Инструкция:"]
[null,null,null,null,null,"●","Небольшие изменения."]
[null,null,null,null,null,null,"Лист Табель:"]
[null,null,null,null,null,"●","Исправлен масштаб печати."]
[null,null,null,null,null,null,"Лист Кор. табель:"]
[null,null,null,null,null,"●","Добавлен пункт в выпадающем меню – «Пр»."]
[null,null,null,null,null,"¿","Пр – приказ (отсутствовал по приказу)."]
["10.02\n2016",null,null,"2.6",null,"●","Ярлыки листов перекрашены в другие цвета."]
[null,null,null,null,null,"●","Создан лист: Кор. табель"]
[null,null,null,null,null,"¿","Месяц заполняется автоматически, при условии заполнения"]
[null,null,null,null,null,null,"месяца на листе «Табель»."]
[null,null,null,null,null,null,"Кор.  табель заполняется за предыдущий месяц."]
[null,null,null,null,null,null,"Лист Инструкция:"]
[null,null,null,null,null,"●","Добавлена инструкция по работе с протоколом заседания"]
[null,null,null,null,null,null,"стипендиальной комиссии."]
[null,null,null,null,null,"●","Небольшие изменения."]
[null,null,null,null,null,null,"Лист Табель:"]
[null,null,null,null,null,"●","Добавлен пункт в выпадающем меню – «Пр»."]
[null,null,null,null,null,"¿","Пр – приказ (отсутствовал по приказу)."]
[null,null,null,null,null,"●","Итоговые пункты окрашены в соответствующие цвета."]
[null,null,null,null,null,"●","Улучшен список сотрудников."]
[null,null,null,null,null,"¿","Стало более удобнее находить Фамилию И. О. в выпадающем"]
[null,null,null,null,null,null,"списке сотрудников."]
[null,null,null,null,null,"●","Исправлен масштаб печати."]
["14.01\n2016",null,null,"2.5",null,"●","Создан лист: Приказ"]
[null,null,null,null,null,"¿","В нём будут размещаться актуальные приказы по работе с"]
[null,null,null,null,null,null,"табелем и стипендией."]
[null,null,null,null,null,null,"Лист Инструкция:"]
[null,null,null,null,null,"●","Мелкие улучшения."]
[null,null,null,null,null,null,"Лист Табель:"]
[null,null,null,null,null,"●","Обновлена информация на строчке «Приложение к приказу...»."]
[null,null,null,null,null,"●","Изменено наименование образовательного учреждения."]
[null,null,null,null,null,"●","Изменено название с «ОСП корпус 1», «ОСП корпус 3» на"]
[null,null,null,null,null,null,"«СП 1», «СП 3»."]
[null,null,null,null,null,"●","Исправлены ошибки, связанные с високосным годом."]
[null,null,null,null,null,null,"Лист Стипендия:"]
[null,null,null,null,null,"●","Изменено наименование образовательного учреждения."]
[null,null,null,null,null,"●","Обновлён список лиц, удостоверяющих протокол."]
[null,null,null,null,null,null,"Лист Звонки:"]
[null,null,null,null,null,"●","Изменено наименование образовательного учреждения."]
["10.12\n2015",null,null,"2.4",null,"●","Создан лист: Стипендия"]
[null,null,null,null,null,"¿","Список с «Ф. И. О. обучающихся» заполняется автоматически,"]
[null,null,null,null,null,null,"при условии заполнения списка на листе «Табель»."]
[null,null,null,null,null,null,"Лист Табель:"]
[null,null,null,null,null,"●","Табель научился определять високосный год."]
[null,null,null,null,null,"●","Обновлён список сотрудников."]
["30.10\n2015",null,null,"2.3",null,"●","Создан лист: Инструкция"]
[null,null,null,null,null,"¿","Инструкция по работе с табелем учёта посещаемости"]
[null,null,null,null,null,null,"обучающимися. Пожалуйста, ознакомьтесь с ней!"]
[null,null,null,null,null,"●","Создан лист: Звонки"]
[null,null,null,null,null,"¿","Расписание звонков теоретических (поурочно и попарно) и"]
[null,null,null,null,null,null,"практических занятий. Завтрак и обед прилагаются."]
[null,null,null,null,null,null,"Лист Табель:"]
[null,null,null,null,null,"●","Изменена область проверки версии табеля."]
[null,null,null,null,null,"●","Изменено название с «ОСП №1», «ОСП №3» на"]
[null,null,null,null,null,null,"«ОСП корпус 1», «ОСП корпус 3»."]
[null,null,null,null,null,"●","В связи с расформированием «ОСП корпус 2», цифра после"]
[null,null,null,null,null,null,"дроби выбирается из выпадающего списка вручную."]
[null,null,null,null,null,"●","Над ячейкой с версией табеля, появилась новая ячейка для"]
[null,null,null,null,null,null,"проверки ознакомления с инструкцией."]
[null,null,null,null,null,"¿","С инструкцией:",null,null,null,null,0,"не ознакомлен;",null,null,null,null,1,"ознакомлен."]
[null,null,null,null,null,"●","Ячейка «Данные по столовой» выровнена по правому краю."]
[null,null,null,null,null,"●","На строчке «Данные по столовой», «Сообщение об ошибке»"]
[null,null,null,null,null,null,"переделано на «Сообщение для ввода»."]
[null,null,null,null,null,"¿","Для того, чтобы убрать назойливое сообщение с"]
[null,null,null,null,null,null,"информацией о несовпадении данных."]
[null,null,null,null,null,"●","Добавлен пункт «Куратор» в ячейку «Мастер п/о»."]
[null,null,null,null,null,"¿","Ячейка заполняется вручную, выбирая пункт из"]
[null,null,null,null,null,null,"выпадающего списка."]
[null,null,null,null,null,"●","Обновлён список сотрудников."]
["15.10\n2015",null,null,"2.2",null,null,"Лист Табель:"]
[null,null,null,null,null,"●","Убран ОСП корпус 2."]
[null,null,null,null,null,"●","Добавлены дни недели."]
[null,null,null,null,null,"¿","Дни недели выставляются автоматически при выборе"]
[null,null,null,null,null,null,"месяца."]
[null,null,null,null,null,"●","Улучшен дизайн таблицы."]
[null,null,null,null,null,"●","Итоговые пункты окрашены в соответствующие цвета."]
[null,null,null,null,null,"●","Другие незначительные улучшения. \"=ТДАТА()\""]
["05.10\n2015",null,null,"2.1",null,null,"Лист Табель:"]
[null,null,null,null,null,"●","Добавлена активная гиперссылкассылка на официальный сайт"]
[null,null,null,null,null,null,"для скачивания новых версий табеля."]
[null,null,null,null,null,"●","Изменён список сотрудников."]
[null,null,null,null,null,"●","Обновлён список лиц, удостоверяющих табель."]
[" 11.06\n2015",null,null,"2.0",null,null,"Лист Табель:"]
[null,null,null,null,null,"●","Добавлен месяц – «Июль»."]
[" 22.04\n2015",null,null,"1.9",null,null,"Лист Табель:"]
[null,null,null,null,null,"●","Добавлено авто заполнение значений по всему столбцу."]
[null,null,null,null,null,"¿","В связи с этим, поменялись значок и расширение файла."]
[" 06.04\n2015",null,null,"1.8",null,null,"Лист Табель:"]
[null,null,null,null,null,"●","Обновлена информация на строчке «Приложение к приказу...»."]
[null,null,null,null,null,"●","Улучшено условное форматирование ячеек, заполняющиеся"]
[null,null,null,null,null,null,"вручную и автоматически."]
[null,null,null,null,null,"¿","Красные ячейки – заполняются вручную."]
[null,null,null,null,null,null,"Жёлтые ячейки – заполняются автоматически."]
[null,null,null,null,null,"●","Обновлены условное форматирование праздничного дня"]
[null,null,null,null,null,null,"(9 мая) и других ячеек."]
[null,null,null,null,null,"●","Год выставляется автоматически."]
[null,null,null,null,null,"¿","Если стоит не правильный год – проверьте дату на своём ПК."]
[null,null,null,null,null,"●","Добавлена информация об ошибках."]
[null,null,null,null,null,"●","Добавлено условие проверки на столбце «Ф. И. О."]
[null,null,null,null,null,null,"обучающегося»."]
[null,null,null,null,null,"¿","Длина текста должна быть не менее 7 и не более 30"]
[null,null,null,null,null,null,"символов."]
[" 02.04\n2015",null,null,"1.7",null,null,"Лист Табель:"]
[null,null,null,null,null,"●","Добавлена проверка новой версии табеля на официальном"]
[null,null,null,null,null,null,"сайте."]
[null,null,null,null,null,"●","Добавлена строчка «Приложение к приказу...»."]
[null,null,null,null,null,"●","Изменён заголовок табеля с «Табель учёта посещаемости"]
[null,null,null,null,null,null,"обучающихся» на «Табель учёта посещаемости обучающимися "]
[null,null,null,null,null,null,"практических и теоретических занятий»."]
[null,null,null,null,null,"●","Обновлено условное форматирование «Данных по столовой»."]
[null,null,null,null,null,"¿","«Данные по столовой» = «Теория» + «Практика в техникуме»."]
[null,null,null,null,null,"●","Ярлыки видимых и невидимых листов окрашены в разные"]
[null,null,null,null,null,null,"цвета."]
[" 01.04\n2015",null,null,"1.6",null,null,"Лист Табель:"]
[null,null,null,null,null,"●","Удалён пункт в выпадающем меню – «П»."]
[null,null,null,null,null,"¿","П - практика."]
[null,null,null,null,null,"●","Добавлены два пункта в выпадающем меню – «ПП» и «ПТ»."]
[null,null,null,null,null,"¿","ПП - практика на предприяти."]
[null,null,null,null,null,null,"ПТ - практика в техникуме."]
[null,null,null,null,null,"●","Обновлён список лиц, удостоверяющих табель."]
[null,null,null,null,null,"●","Мелкие улучшения для последующих версий."]
[" 15.10\n2014",null,null,"1.1-1.5",null,null,"Лист Табель:"]
[null,null,null,null,null,"●","Исправлены ошибки и недочёты, возникших при работе с"]
[null,null,null,null,null,null,"табелем."]
[null,null,null,null,null,"●","Другие значительные и незначительные улучшения."]
["2014",null,null,"1.0",null,null,"Лист Табель:"]
[null,null,null,null,null,"●","Создан «Табель учёта посещаемости обучающихся»."]

{"sheet":"Тех.лист","index":9,"n_rows":127,"n_cols":13,"rows_kept":127,"cut":false,"hidden":true,"merged":[[0,0,0,1],[63,3,63,4],[0,11,0,12],[1,11,1,12],[9,11,9,12],[10,11,10,12],[11,11,11,12],[2,11,2,12],[16,5,16,6],[24,5,24,6],[26,10,37,10],[19,11,19,12],[14,10,18,10],[90,2,90,4],[16,2,16,4],[3,11,3,12],[4,11,4,12],[5,11,5,12],[6,11,6,12],[7,11,7,12],[8,11,8,12],[24,11,24,12],[25,11,25,12],[24,3,24,4],[17,2,23,2],[12,11,12,12],[18,11,18,12],[13,11,13,12],[19,10,25,10],[89,2,89,4],[21,11,21,12],[23,11,23,12],[22,11,22,12],[20,11,20,12],[62,11,62,12]]}
["Группы",null,"Месяцы","№ мес","Обозначения",null,null,"Мастер п/о","Кол-во","Месяцы","№ мес","Социальный педагог"]
["91","01","январь",{"$f":"IF(C2=Табель!Y$6,1,0)","v":0},"т",null,null,"⓿ Главный корпус ⓿",{"$f":"IF(Список!B7=0,0,1)","v":0},"Январь",{"$f":"IF(J2=Стипендия!J4,1,0)","v":0},"Руководитель СП 1"]
["92","02","февраль",{"$f":"IF(C3=Табель!Y$6,2,0)","v":0},"пк",null,null,"Азаров С. Н.",{"$f":"IF(Список!B8=0,0,1)","v":0},"Февраль",{"$f":"IF(J3=Стипендия!J4,2,0)","v":0},"Руководитель СП 3"]
["93","03","март",{"$f":"IF(C4=Табель!Y$6,3,0)","v":0},"пп",null,null,"Грудина Н. М.",{"$f":"IF(Список!B9=0,0,1)","v":0},"Март",{"$f":"IF(J4=Стипендия!J4,3,0)","v":0},"Руководитель СП 2"]
["94","04","апрель",{"$f":"IF(C5=Табель!Y$6,4,0)","v":0},"н",null,null,"Дюжилова О. В.",{"$f":"IF(Список!B10=0,0,1)","v":0},"Апрель",{"$f":"IF(J5=Стипендия!J4,4,0)","v":0},{"$f":"IF(Табель!N5=L16,L2,L6)","v":"Социальный педагог"}]
["95","05","май",{"$f":"IF(C6=Табель!Y$6,5,0)","v":0},"с",null,null,"Илюшина М. В.",{"$f":"IF(Список!B11=0,0,1)","v":0},"Май",{"$f":"IF(J6=Стипендия!J4,5,0)","v":0},{"$f":"IF(Табель!N5=L17,L3,L7)","v":"Социальный педагог"}]
["96","06","июнь",{"$f":"IF(C7=Табель!Y$6,6,0)","v":0},"пр",null,null,"Кива Н. А.",{"$f":"IF(Список!B12=0,0,1)","v":0},"Июнь",{"$f":"IF(J7=Стипендия!J4,6,0)","v":0},{"$f":"IF(Табель!N5=L18,L4,L1)","v":"Социальный педагог"}]
["97","07","июль",{"$f":"IF(C8=Табель!Y$6,7,0)","v":0},"От",null,null,"Кирьяк Г. Б.",{"$f":"IF(Список!B13=0,0,1)","v":0},"Июль",{"$f":"IF(J8=Стипендия!J4,7,0)","v":0},"И. И. Хакина"]
["98","08","сентябрь",{"$f":"IF(C9=Табель!Y$6,9,0)","v":0},"Кл. руковод.",null,null,"Колодкина Т. В.",{"$f":"IF(Список!B14=0,0,1)","v":0},"Август",{"$f":"IF(J9=Стипендия!J4,8,0)","v":0},"К. М. Бабашкина"]
["99","09","октябрь",{"$f":"IF(C10=Табель!Y$6,10,0)","v":0},"Мастер п/о",null,null,"Кузнецов А. И.",{"$f":"IF(Список!B15=0,0,1)","v":0},"Сентябрь",{"$f":"IF(J10=Стипендия!J4,9,0)","v":0},"О. А. Вольнова"]
["81","11","ноябрь",{"$f":"IF(C11=Табель!Y$6,11,0)","v":0},"От",null,null,"Медников А. В.",{"$f":"IF(Список!B16=0,0,1)","v":0},"Октябрь",{"$f":"IF(J11=Стипендия!J4,10,0)","v":0},"И. О. Фамилия"]
["82","12","декабрь",{"$f":"IF(C12=Табель!Y$6,12,0)","v":0},{"$f":"IF(Табель!Y6=Тех.лист!C2,COUNTIF(Табель!M9:M43,E8),COUNTIF(Табель!C9:C43,E8))","v":0},null,null,"Миронова В. И.",{"$f":"IF(Список!B17=0,0,1)","v":0},"Ноябрь",{"$f":"IF(J12=Стипендия!J4,11,0)","v":0},{"$f":"IF(Табель!N5=L16,L9,L13)","v":"И. И. Хакина"}]
["83","13","№ мес.",{"$f":"SUM(D2:D12)","v":0},"Табель",{"$f":"IF(D13=1,12,D13-1)","v":-1},"Кор. Таб.","Попова Г. Н.",{"$f":"IF(Список!B18=0,0,1)","v":0},"Декабрь",{"$f":"IF(J13=Стипендия!J4,12,0)","v":0},{"$f":"IF(Табель!N5=L17,L10,L14)","v":"И. И. Хакина"}]
["84","14","Пн",{"$f":"DATE(Табель!AB6,Тех.лист!D13,1)-WEEKDAY(DATE(Табель!AB6,Тех.лист!D13,1),2)+1","v":"2016-11-28"},{"$f":"D14","v":42702},{"$f":"DATE('Кор. табель'!AB6,Тех.лист!F13,1)-WEEKDAY(DATE('Кор. табель'!AB6,Тех.лист!F13,1),2)+1","v":"2016-10-31"},{"$f":"F14","v":42674},"Семивражеский А. С.",{"$f":"IF(Список!B19=0,0,1)","v":0},"№ мес",{"$f":"SUM(K2:K13)","v":0},{"$f":"IF(Табель!N5=L18,L11,L8)","v":"И. И. Хакина"}]
["85","15","Сб",{"$f":"D14+5","v":"2016-12-03"},{"$f":"E14+5","v":42707},{"$f":"F14+5","v":"2016-11-05"},{"$f":"G14+5","v":42679},"Смирнова Т. Б.",{"$f":"IF(Список!B20=0,0,1)","v":0},null,null,"Главный корпус",{"$f":"SUM(M16:M18)","v":0}]
["86","16","Сб №2",{"$f":"D14+12","v":"2016-12-10"},{"$f":"E14+12","v":42714},{"$f":"F14+12","v":"2016-11-12"},{"$f":"G14+12","v":42686},"Суляева Г. В.",{"$f":"IF(Список!B21=0,0,1)","v":0},null,null,"СП 1",{"$f":"IF(L16=Табель!N5,1,0)","v":0}]
["87","17",null,null,null,null,null,"Хакина И. И.",{"$f":"IF(Список!B22=0,0,1)","v":0},null,null,"СП 3",{"$f":"IF(L17=Табель!N5,3,0)","v":0}]
["88","18","День недели",{"$f":"Табель!C7","v":1},{"$f":"DATE(Табель!AB$6,Тех.лист!D$13,D18)","v":42705},{"$f":"'Кор. табель'!C7","v":1},{"$f":"DATE('Кор. табель'!AB$6,Тех.лист!F$13,F18)","v":42675},"Чернов В. В.",{"$f":"IF(Список!B23=0,0,1)","v":0},null,null,"СП 2",{"$f":"IF(L18=Табель!N5,2,0)","v":0}]
["89","19",null,{"$f":"Табель!D7","v":2},{"$f":"DATE(Табель!AB$6,Тех.лист!D$13,D19)","v":42706},{"$f":"'Кор. табель'!D7","v":2},{"$f":"DATE('Кор. табель'!AB$6,Тех.лист!F$13,F19)","v":42676},"Шелег И. И.",{"$f":"IF(Список!B24=0,0,1)","v":0},null,null,{"$f":"IF(Табель!N5=L15,L20,IF(Табель!N5=L16,L21,IF(Табель!N5=L17,L22,0)))","v":0}]
["71","21",null,{"$f":"Табель!E7","v":3},{"$f":"DATE(Табель!AB$6,Тех.лист!D$13,D20)","v":42707},{"$f":"'Кор. табель'!E7","v":3},{"$f":"DATE('Кор. табель'!AB$6,Тех.лист!F$13,F20)","v":42677},"❶ СП 1 ❶",{"$f":"IF(Список!B25=0,0,1)","v":0},null,"Звонки","Зам. директора по УР"]
["72","22",null,{"$f":"Табель!F7","v":4},{"$f":"DATE(Табель!AB$6,Тех.лист!D$13,D21)","v":42708},{"$f":"'Кор. табель'!F7","v":4},{"$f":"DATE('Кор. табель'!AB$6,Тех.лист!F$13,F21)","v":42678},"Балакин П. Д.",{"$f":"IF(Список!B26=0,0,1)","v":0},null,null,"Методист"]
["73","23",null,{"$f":"Табель!G7","v":5},{"$f":"DATE(Табель!AB$6,Тех.лист!D$13,D22)","v":42709},{"$f":"'Кор. табель'!G7","v":5},{"$f":"DATE('Кор. табель'!AB$6,Тех.лист!F$13,F22)","v":42679},"Бурлаков В. П.",{"$f":"IF(Список!B27=0,0,1)","v":0},null,null,"Зав. очным отделением"]
["74","24",null,{"$f":"Табель!H7","v":6},{"$f":"DATE(Табель!AB$6,Тех.лист!D$13,D23)","v":42710},{"$f":"'Кор. табель'!H7","v":6},{"$f":"DATE('Кор. табель'!AB$6,Тех.лист!F$13,F23)","v":42680},"Быковский В. Н.",{"$f":"IF(Список!B28=0,0,1)","v":0},null,null,{"$f":"IF(Табель!N5=L15,L24,IF(Табель!N5=L16,L25,IF(Табель!N5=L17,L26,0)))","v":0}]
["75","25",null,{"$f":"Табель!I7","v":7},{"$f":"DATE(Табель!AB$6,Тех.лист!D$13,D24)","v":42711},{"$f":"'Кор. табель'!I7","v":7},{"$f":"DATE('Кор. табель'!AB$6,Тех.лист!F$13,F24)","v":42681},"Войшкович А. Ю.",{"$f":"IF(Список!B29=0,0,1)","v":0},null,null,"М. Д. Лебедь-Шарлевич"]
["76","26","День","День нед.",null,"День нед.",null,"Зотова Н. Н.",{"$f":"IF(Список!B30=0,0,1)","v":0},null,null,"Н. Е. Козлова"]
["77","27",1,{"$f":"WEEKDAY(E$18,2)","v":4},{"$f":"IF(D26=1,D57,IF(D26=2,D58,IF(D26=3,D59,IF(D26=4,D60,IF(D26=5,D61,IF(D26=6,D62,IF(D26=7,D63,D57)))))))","v":"Чт"},{"$f":"WEEKDAY(G$18,2)","v":2},{"$f":"IF(F26=1,D57,IF(F26=2,D58,IF(F26=3,D59,IF(F26=4,D60,IF(F26=5,D61,IF(F26=6,D62,IF(F26=7,D63,D57)))))))","v":"Вт"},"Красненькова Ю. С.",{"$f":"IF(Список!B31=0,0,1)","v":0},null,null,"В. А. Евстропьева"]
["78","28",2,{"$f":"WEEKDAY(E$19,2)","v":5},{"$f":"IF(D27=2,D58,IF(D27=2,D58,IF(D27=3,D59,IF(D27=4,D60,IF(D27=5,D61,IF(D27=6,D62,IF(D27=7,D63,D57)))))))","v":"Пт"},{"$f":"WEEKDAY(G$19,2)","v":3},{"$f":"IF(F27=2,D58,IF(F27=2,D58,IF(F27=3,D59,IF(F27=4,D60,IF(F27=5,D61,IF(F27=6,D62,IF(F27=7,D63,D57)))))))","v":"Ср"},"Мосина Т. Н.",{"$f":"IF(Список!B32=0,0,1)","v":0},null,"Стипендия","Зам. директора по УПР","И. А. Слуцкая"]
["79","29",3,{"$f":"WEEKDAY(E$20,2)","v":6},{"$f":"IF(D28=3,D59,IF(D28=2,D58,IF(D28=3,D59,IF(D28=4,D60,IF(D28=5,D61,IF(D28=6,D62,IF(D28=7,D63,D57)))))))","v":"Сб"},{"$f":"WEEKDAY(G$20,2)","v":4},{"$f":"IF(F28=3,D59,IF(F28=2,D58,IF(F28=3,D59,IF(F28=4,D60,IF(F28=5,D61,IF(F28=6,D62,IF(F28=7,D63,D57)))))))","v":"Чт"},"Никульникова Р. Н.",{"$f":"IF(Список!B33=0,0,1)","v":0},null,null,"Руководитель СП 1","К. М. Бабашкина"]
["61","31",4,{"$f":"WEEKDAY(E$21,2)","v":7},{"$f":"IF(D29=4,D60,IF(D29=2,D58,IF(D29=3,D59,IF(D29=4,D60,IF(D29=5,D61,IF(D29=6,D62,IF(D29=7,D63,D57)))))))","v":"Вс"},{"$f":"WEEKDAY(G$21,2)","v":5},{"$f":"IF(F29=4,D60,IF(F29=2,D58,IF(F29=3,D59,IF(F29=4,D60,IF(F29=5,D61,IF(F29=6,D62,IF(F29=7,D63,D57)))))))","v":"Пт"},"Поляков В. М.",{"$f":"IF(Список!B34=0,0,1)","v":0},null,null,"Руководитель СП 3","О. А. Вольнова"]
["62","32",5,{"$f":"WEEKDAY(E$22,2)","v":1},{"$f":"IF(D30=5,D61,IF(D30=2,D58,IF(D30=3,D59,IF(D30=4,D60,IF(D30=5,D61,IF(D30=6,D62,IF(D30=7,D63,D57)))))))","v":"Пн"},{"$f":"WEEKDAY(G$22,2)","v":6},{"$f":"IF(F30=5,D61,IF(F30=2,D58,IF(F30=3,D59,IF(F30=4,D60,IF(F30=5,D61,IF(F30=6,D62,IF(F30=7,D63,D57)))))))","v":"Сб"},"Полякова И. Н.",{"$f":"IF(Список!B35=0,0,1)","v":0},null,null,{"$f":"IF(Табель!N5=L15,L27,L31)","v":"Зам. директора по УПР"},{"$f":"IF(Табель!N5=L15,M27,M31)","v":"И. А. Слуцкая"}]
["63","33",6,{"$f":"WEEKDAY(E$23,2)","v":2},{"$f":"IF(D31=6,D62,IF(D31=2,D58,IF(D31=3,D59,IF(D31=4,D60,IF(D31=5,D61,IF(D31=6,D62,IF(D31=7,D63,D57)))))))","v":"Вт"},{"$f":"WEEKDAY(G$23,2)","v":7},{"$f":"IF(F31=6,D62,IF(F31=2,D58,IF(F31=3,D59,IF(F31=4,D60,IF(F31=5,D61,IF(F31=6,D62,IF(F31=7,D63,D57)))))))","v":"Вс"},"Попова С. С.",{"$f":"IF(Список!B36=0,0,1)","v":0},null,null,{"$f":"IF(Табель!N5=L16,L28,L32)","v":"Зам. директора по УПР"},{"$f":"IF(Табель!N5=L16,M28,M32)","v":"И. А. Слуцкая"}]
["64","34",7,{"$f":"WEEKDAY(E$24,2)","v":3},{"$f":"IF(D32=7,D63,IF(D32=2,D58,IF(D32=3,D59,IF(D32=4,D60,IF(D32=5,D61,IF(D32=6,D62,IF(D32=7,D63,D57)))))))","v":"Ср"},{"$f":"WEEKDAY(G$24,2)","v":1},{"$f":"IF(F32=7,D63,IF(F32=2,D58,IF(F32=3,D59,IF(F32=4,D60,IF(F32=5,D61,IF(F32=6,D62,IF(F32=7,D63,D57)))))))","v":"Пн"},"Потапова В. Н.",{"$f":"IF(Список!B37=0,0,1)","v":0},null,null,{"$f":"IF(Табель!N5=L17,L29,L27)","v":"Зам. директора по УПР"},{"$f":"IF(Табель!N5=L17,M29,M27)","v":"И. А. Слуцкая"}]
["65","35",8,{"$f":"WEEKDAY(E$18,2)","v":4},"Расписание",{"$f":"WEEKDAY(G$18,2)","v":2},null,"Рыбакова Г. Н.",{"$f":"IF(Список!B38=0,0,1)","v":0},null,null,"Социальный педагог","И. И. Хакина"]
["66","36",9,{"$f":"WEEKDAY(E$19,2)","v":5},"января",{"$f":"WEEKDAY(G$19,2)","v":3},null,"Рыжий И. Н.",{"$f":"IF(Список!B39=0,0,1)","v":0},null,null,"Социальный педагог","И. А. Винокурова"]
["67","37",10,{"$f":"WEEKDAY(E$20,2)","v":6},"февраля",{"$f":"WEEKDAY(G$20,2)","v":4},null,"Рябцева В. В.",{"$f":"IF(Список!B40=0,0,1)","v":0},null,null,"Зав. очным отделением","В. А. Евстропьева"]
["68","38",11,{"$f":"WEEKDAY(E$21,2)","v":7},"марта",{"$f":"WEEKDAY(G$21,2)","v":5},null,"Трофимова А. Г.",{"$f":"IF(Список!B41=0,0,1)","v":0},null,null,{"$f":"IF(Табель!N5=L15,L33,L37)","v":"Социальный педагог"},{"$f":"IF(Табель!N5=L15,M33,M37)","v":"И. И. Хакина"}]
["69","39",12,{"$f":"WEEKDAY(E$22,2)","v":1},"апреля",{"$f":"WEEKDAY(G$22,2)","v":6},null,"Фролов В. А.",{"$f":"SUM(I2:I36)","v":0},null,null,{"$f":"IF(Табель!N5=L16,L34,L38)","v":"Социальный педагог"},{"$f":"IF(Табель!N5=L16,M34,M38)","v":"И. И. Хакина"}]
["51","41",13,{"$f":"WEEKDAY(E$23,2)","v":2},"мая",{"$f":"WEEKDAY(G$23,2)","v":7},null,"❸ СП 3 ❸",null,null,null,{"$f":"IF(Табель!N5=L17,L35,L33)","v":"Социальный педагог"},{"$f":"IF(Табель!N5=L17,M35,M33)","v":"И. И. Хакина"}]
["52","42",14,{"$f":"WEEKDAY(E$24,2)","v":3},"июня",{"$f":"WEEKDAY(G$24,2)","v":1},null,"Белкин Н. П."]
["53","43",15,{"$f":"WEEKDAY(E$18,2)","v":4},"июля",{"$f":"WEEKDAY(G$18,2)","v":2},null,"Богоцкая Т. А."]
["54","44",16,{"$f":"WEEKDAY(E$19,2)","v":5},"сентября",{"$f":"WEEKDAY(G$19,2)","v":3},null,"Войтенко Г. Б."]
["55","45",17,{"$f":"WEEKDAY(E$20,2)","v":6},"октября",{"$f":"WEEKDAY(G$20,2)","v":4},null,"Исаева Л. А."]
["56","46",18,{"$f":"WEEKDAY(E$21,2)","v":7},"ноября",{"$f":"WEEKDAY(G$21,2)","v":5},null,"Куроедова Н. В."]
["57","47",19,{"$f":"WEEKDAY(E$22,2)","v":1},"декабря",{"$f":"WEEKDAY(G$22,2)","v":6},null,"Лаговская Н. Е."]
["58","48",20,{"$f":"WEEKDAY(E$23,2)","v":2},"00",{"$f":"WEEKDAY(G$23,2)","v":7},null,"Лазаренков А. С."]
["59","49",21,{"$f":"WEEKDAY(E$24,2)","v":3},"05",{"$f":"WEEKDAY(G$24,2)","v":1},null,"Плахов О. Ю."]
["41","51",22,{"$f":"WEEKDAY(E$18,2)","v":4},"10",{"$f":"WEEKDAY(G$18,2)","v":2},null,"Понкратова Н. В."]
["42","52",23,{"$f":"WEEKDAY(E$19,2)","v":5},"15",{"$f":"WEEKDAY(G$19,2)","v":3},null,"Прущак Т. В."]
["43","53",24,{"$f":"WEEKDAY(E$20,2)","v":6},"20",{"$f":"WEEKDAY(G$20,2)","v":4},null,"Рейс М. А."]
["44","54",25,{"$f":"WEEKDAY(E$21,2)","v":7},"25",{"$f":"WEEKDAY(G$21,2)","v":5},null,"Столярова Н. И."]
["45","55",26,{"$f":"WEEKDAY(E$22,2)","v":1},"30",{"$f":"WEEKDAY(G$22,2)","v":6}]
["46","56",27,{"$f":"WEEKDAY(E$23,2)","v":2},"35",{"$f":"WEEKDAY(G$23,2)","v":7},null,{"$f":"OR(Табель!C7=КВД!$A$4,Табель!C7=КВД!$A$5,Табель!C7=КВД!$A$6)","v":false}]
["47","57",28,{"$f":"WEEKDAY(E$24,2)","v":3},"40",{"$f":"WEEKDAY(G$24,2)","v":1}]
["48","58",29,{"$f":"WEEKDAY(E$18,2)","v":4},"45",{"$f":"WEEKDAY(G$18,2)","v":2}]
["49","59",30,{"$f":"WEEKDAY(E$19,2)","v":5},"50",{"$f":"WEEKDAY(G$19,2)","v":3}]
["31","61",31,{"$f":"WEEKDAY(E$20,2)","v":6},"55",{"$f":"WEEKDAY(G$20,2)","v":4}]
["32","62","Вис. год","Пн",265]
["33","63",{"$f":"C59-1","v":2016},"Вт",530]
["34","64",{"$f":"YEAR(TODAY())","v":2017},"Ср",795]
["35","65",{"$f":"DATE(C59,12,31)-DATE(C59,1,1)+1","v":365},"Чт",1060]
["36","66",{"$f":"IF(OR(Табель!Y6=C3,'Кор. табель'!Y6=C3),IF(C60=366,1,0),0)","v":0},"Пт",1325]
["37","67","Кор. таб.","Сб",1590,null,null,null,null,null,null,"PCNikulina@mail.ru","148635AlexBor!"]
["38","68",{"$f":"IF(Табель!Y6=Тех.лист!C2,C12,IF(Табель!Y6=Тех.лист!C3,C2,IF(Табель!Y6=Тех.лист!C4,C3,IF(Табель!Y6=Тех.лист!C5,C4,IF(Табель!Y6=Тех.лист!C6,C5,IF(Табель!Y6=Тех.лист!C7,C6,IF(Табель!Y6=Тех.лист!C8,C7,IF(Табель!Y6=Тех.лист!C9,C8,IF(Табель!Y6=Тех.лист!C10,C9,IF(Табель!Y6=Тех.лист!C11,C10,IF(Табель!Y6=Тех.лист!C12,C11,0)))))))))))","v":0},"Вс",4000,null,null,null,null,null,null,"https://biz.mail.ru/login/pcn.usite.pro"]
["39","69",{"$f":"MID(C59,4,1)","v":"7"},"Послед. цифра года",null,null,null,null,null,null,null,"SP1@podolsk-college.ru","3S#yJ3JahWrw"]
["21","71",null,null,null,null,null,null,null,null,null,"SP2@podolsk-college.ru",")LuD2vWy3Mpz"]
["22","72",null,null,null,null,null,null,null,null,null,"SP3@podolsk-college.ru","NeL&o7JvP7rt"]
["23","73",null,null,null,null,null,null,null,null,null,"SP4@podolsk-college.ru","76zK=pupfVUZ"]
["24","74",null,null,null,null,null,null,null,null,null,"Main@podolsk-college.ru","1iZ5=cygQwFZ"]
["25","75"]
["26","76"]
["27","77"]
["28","78"]
["29","79"]
["11","81"]
["12","82"]
["13","83"]
["14","84"]
["15","85"]
["16","86"]
["17","87"]
["18","88"]
["19","89"]
["01","91"]
["02","92"]
["03","93"]
["04","94"]
["05","95"]
["06","96"]
["07","97"]
["08","98","не ознакомлен(а)"]
["09","99","ознакомлен(а)",null,null,{"$f":"DAY(TODAY())","v":"1900-01-04"},{"$f":"IF(AND(Табель!Y6=Тех.лист!C5,F91=1),1,0)","v":0},"1 апреля",null,{"$f":"SUBSTITUTE(Версия!B280,\"0.\",\"\")","v":"3.4"}]
["91"]
["92"]
["93"]
["94"]
["95"]
["96"]
["97"]
["98"]
["99"]
["81"]
["82"]
["83"]
["84"]
["85"]
["86"]
["87"]
["88"]
["89"]
["71"]
["72"]
["73"]
["74"]
["75"]
["76"]
["77"]
["78"]
["79"]
["61"]
["62"]
["63"]
["64"]
["65"]
["66"]
["67"]
["68"]
["69"]

{"sheet":"Версия","index":10,"n_rows":298,"n_cols":9,"rows_kept":298,"cut":false,"hidden":true,"merged":[]}
[null,"ГБПОУ МО \"Подольский колледж имени А. В. Никулина\"","Четверг, 04.05.2017, 13:06","Версия сайта для слабовидящих",null,null,null,"8AB","8AB"]
["Главная Регистрация Вход Абитуриенту Студенту Педагогу Конкурсы, олимпиады",null,null,null,null,null,null,"8AB","8AB"]
["Приветствую Вас, Гость"]
[]
["Сведения об ОО "]
["Основные сведения"]
["Структура и органы управления ОО"]
["Документы"]
["Федеральные"]
["Учредительные"]
["Локальные акты"]
["Показатели деятельности ПОО, подлежащей самообследованию"]
["Публичный доклад"]
["Образование"]
["Образовательные стандарты"]
["Руководство. Педагогический состав"]
["Материально-техническое обеспечение"]
["Стипендии и иные виды материальной поддержки"]
["Платные образовательные услуги"]
["Финансово-хозяйственная деятельность"]
["Вакантные места для приёма (перевода)"]
["Наши партнёры "]
["Акционерное общество «Специализированное строительно-монтажное управление №51»"]
["(АО «ССМУ-51»)"]
[]
[]
[]
["АО ОКБ «ГИДРОПРЕСС»"]
[]
[]
[]
[]
["ГазпромБанк"]
[]
[]
[]
[]
["ГКУ МО Климовский ЦЗН"]
[]
[]
[]
[]
["ГКУ МО Подольский ЦЗН"]
[]
[]
[]
[]
["ГБУЗ МО «Подольская детская городская больница»"]
[]
[]
[]
[]
["ГБУЗ МО «Подольский родильный дом»"]
[]
[]
[]
[]
["Группа компаний «Подольская жилищная инициатива»"]
["ООО «ПЖИ-Контакт»"]
[]
[]
[]
[]
["ЗАО «Электротехническая компания «Эмтика»"]
[]
[]
[]
[]
["МБУК «СДК «Молодежный»"]
[]
[]
[]
[]
["МУ «Дворец молодёжи»"]
[]
[]
[]
[]
["Муниципальное бюджетное учреждение «Универсальный спортивный центр «Юность»"]
[]
[]
[]
[]
["МУП «Подольский Комбинат Питания и Оптово-розничной Торговли»"]
[]
[]
[]
[]
["МУП «Водоканал» г. Подольска"]
[]
[]
[]
[]
["МУП «Климовская электросетевая компания»"]
[]
[]
[]
["НОУ ВПО «Институт экономики»"]
[]
[]
[]
[]
["ООО «Автоконсульт»"]
[]
[]
[]
["ООО «ВВВ»"]
[]
[]
[]
["ООО «КП «Торгсервис»"]
[]
[]
[]
["ООО «ГИПЕРГЛОБУС»"]
[]
[]
[]
[]
["ООО «КОМТЕХ»"]
[]
[]
[]
[]
["ООО «ЛУЧ»"]
[]
[]
[]
["ООО «Региональное общество сбыта «Продукт»"]
[]
[]
[]
["ООО «Русский рыбный мир»"]
[]
[]
[]
[]
["ООО «Трансформер»"]
[]
[]
[]
[]
["ООО «Фрилон Инвест»"]
[]
[]
[]
["ООО «Чеховметаллоснаб»"]
[]
[]
[]
["ПАО «Машиностроительный завод «ЗиО-Подольск»"]
[]
[]
[]
[]
["ФГБОУ ВО «РГУТИС»"]
[]
[]
[]
[]
["Федеральное государственное унитарное дорожное эксплуатационное предприятие №17"]
["(ФГУ ДЭП №17)"]
[]
[]
[]
[]
["Информация "]
["Старая версия сайта"]
["Система электронного обучения (СЭО)"]
["Виртуальная экскурсия"]
["ДОСКА ОБЪЯВЛЕНИЙ"]
["Проекты"]
["Награды"]
["Библиотека"]
["ИКТ"]
["Доступная среда"]
["Вопрос-ответ"]
["Вход на сайт "]
[]
["Войти через uID"]
[]
["Старая форма входа"]
["E-mail:"]
["Пароль:"]
["запомнить"]
["Забыл пароль | Регистрация"]
["Поиск "]
["Календарь событий "]
["«  Май 2017  »"]
["Пн","Вт","Ср","Чт","Пт","Сб","Вс"]
[1,2,3,4,5,6,7]
[8,9,10,11,12,13,14]
[15,16,17,18,19,20,21]
[22,23,24,25,26,27,28]
[29,30,31]
["Архив записей "]
["2017 Февраль"]
["2017 Март"]
["2017 Апрель"]
["2017 Май"]
["Контакты "]
["Телефон:"]
["Главный корпус: 8 (4967) 69-96-28"]
["СП 1: 8 (4967) 54-26-46"]
["СП 2: 8 (4967) 54-71-09"]
["СП 3: 8 (4967) 62-10-54"]
["СП 4: 8 (4967) 39-62-38"]
[]
["Наши адреса:"]
["Главный корпус: г. Подольск, ул. Большая Зелёновская,"]
["д. 54 / 82."]
[]
[]
["СП 1: г. Подольск, ул. Машиностроителей, д. 9."]
[]
[]
["СП 2: г. Подольск, ул. Генерал-губернатора Закревского, 3."]
[]
[]
["СП 3: г. Климовск, ул. Ленина, д. 2А."]
[]
[]
["СП 4: г. Серпухов, ул. Джона Рида, д. 7."]
[]
["E-Mail:"]
["Главный корпус: PPETMO@bk.ru"]
["СП 1: Kadr27GPU@mail.ru"]
["СП 2: PCollege@inbox.ru"]
["СП 3: PPET_3Korpus@mail.ru"]
["СП 4: PK.SP4@mail.ru"]
["Мы в сетях "]
["Социальные сети"]
[]
[]
["Наш канал"]
["Наш опрос "]
["Оцените мой сайт"]
["Отлично"]
["Хорошо"]
["Неплохо"]
["Плохо"]
["Ужасно"]
["[ Результаты · Архив опросов ]"]
["Всего ответов: 25"]
["Отзывы "]
["Потратить несколько минут на"]
["отзыв, Вы можете кликнув тут!"]
["Статистика "]
[]
[]
["Онлайн всего: 4"]
["Гостей: 3"]
["Пользователей: 1"]
["AlexBor"]
[]
[]
["Пользователи, посетившие сайт за текущий день –"]
[]
["MarinaD"]
[]
["ИКТ"]
[]
[]
[]
["Информационные технологии (ИТ, также – информационно-коммуникационные технологии) – это:"]
[]
["процессы, методы поиска, сбора, хранения, обработки, предоставления, распространения информации и способы осуществления таких процессов и методов (ФЗ №149-ФЗ);"]
["приёмы, способы и методы применения средств вычислительной техники при выполнении функций сбора, хранения, обработки, передачи и использования данных (ГОСТ 34.003-90);"]
["ресурсы, необходимые для сбора, обработки, хранения и распространения информации (ISO/IEC 38500:2008)."]
[]
["Управляет ИТ технологиями в ГБПОУ МО \"Подольский колледж имени А. В. Никулина\" заместитель директора по ИТ, ДО – Борисов Алексей Юрьевич."]
[]
["   Внедрение компьютерной техники во все сферы человеческой деятельности послужило толчком к зарождению новой научной и прикладной дисциплины - информатики. Впервые этот термин стал использоваться во Франции в 60-х годах. В англоязычных странах ему соответствует синоним computer science (наука о компьютерной технике). В нашей стране информатика стала определяться как самостоятельная область деятельности с начала 80-х годов, а спустя несколько лет вошла в образовательную программу как самостоятельная дисциплина."]
["   Информатика определяет сферу человеческой деятельности, связанную с процессами хранения, преобразования и передачи информации с помощью компьютера. Но могущество компьютера определяется человеком и теми знаниями, которыми он обладает. В процессе изучения информатики надо не только научиться работать на компьютере, но и уметь целенаправленно его использовать для познания и созидания окружающего нас мира."]
[]
[]
[]
["Собственные разработки"]
["Наименование документа"," Версия "," Ссылка "]
["Табель учёта посещаемости обучающихся","0.3.4","Скачать "]
["Протокол стипендиальной комиссии"]
["Расписание звонков"]
["Обновление для поддержки нового символа валюты"]
["российского рубля в Windows 7-8.1, Server 2008 (₽)"]
["(для протокола стипендиальной комиссии)"]
["Шаблон для заполнения бланка Диплома","0.0.0","Скачать"]
["и Приложения к Диплому 2017 года выпуска"]
["(Гознак, МПФ, Москва, 2015, \"Б\".)"]
["Загадка","0.4.0","Скачать"]
[]
[]
["Полезные ссылки:"]
["Перейти"]
["Copyright MyCorp © 2016-2017"]
["AlexBor","|","MarinaD"]
["PCollege","|","GeorgiL"]
["uCoz"]
["Карта сайта Ссылки на сайты Схема проезда Время работы Контакты Обратная связь"]